Workbook

Sheet Fox Ridge Apartments
A2: Income Statement - Trailing 12
A3: Fox Ridge Apartments
A4: Cash Basis
A5: Apr 2025 - Mar 2026
A7: Account | B7: Account Name | C7: Apr 2025 | D7: May 2025 | E7: Jun 2025 | F7: Jul 2025 | G7: Aug 2025 | H7: Sep 2025 | I7: Oct 2025 | J7: Nov 2025 | K7: Dec 2025 | L7: Jan 2026 | M7: Feb 2026 | N7: Mar 2026 | O7: Total | Q7: Income Statement: GL Account Type | R7: Income Statement: Property | S7: Income Statement: Property Look-Up Code | T7: Income Statement: Unit Count | U7: Income Statement: 0 | V7: Income Statement: 1 | W7: Income Statement: 2 | X7: Income Statement: 3 | Y7: Income Statement: 4 | Z7: Income Statement: 5 | AA7: Income Statement: 6 | AB7: Income Statement: 7 | AC7: Income Statement: 8 | AD7: Income Statement: 9 | AE7: Income Statement: 10 | AF7: Income Statement: 11 | AG7: Income Statement: 31 | AH7: Income Statement: 41 | AI7: Income Statement: Month 1 Change Sign | AJ7: Income Statement: Month 2 Change Sign | AK7: Income Statement: Month 3 Change Sign | AL7: Income Statement: Month 4 Change Sign | AM7: Income Statement: Month 5 Change Sign | AN7: Income Statement: Month 6 Change Sign | AO7: Income Statement: Month 7 Change Sign | AP7: Income Statement: Month 8 Change Sign | AQ7: Income Statement: Month 9 Change Sign | AR7: Income Statement: 51 | AS7: Income Statement: Month 10 Change Sign | AT7: Income Statement: Month 11 Change Sign | AU7: Income Statement: Month 12 Change Sign | AV7: Income Statement: Total Change Sign
A8: Income
A9: Rental Income
A10: Rent- Base Rent
A11: 41100 | B11: Gross Potential Rent- Tenant | C11: 19758.05 | D11: 16982.31 | E11: 12047.93 | F11: 21425.73 | G11: 21782 | H11: 21759 | I11: 21726 | J11: 22206 | K11: 22206 | L11: 19456.2 | M11: 19477.3 | N11: 18907 | O11: 237733.52 | Q11: 4 | R11: Fox Ridge Apartments | U11: 101108 | V11: Fox Ridge Apartments | W11: 100075993 | X11: Net Income|Net Operating Income|Income|Rental Income|Rent | Y11: Net Income|Net Operating Income|Income|Rental Income|Rent- Base Rent | Z11: 00000|00000|00000|00000|00001 | AA11: Gross Potential Rent- Tenant | AB11: 41100 | AC11: 1 | AD11: 95166 | AE11: 0 | AF11: 4|4|4|4|4 | AG11: 2 | AH11: 1 | AI11: =IF(5 = Q11, C11 * -1, C11) -> 19758.05 | AJ11: =IF(5 = Q11, D11 * -1, D11) -> 16982.31 | AK11: =IF(5 = Q11, E11 * -1, E11) -> 12047.93 | AL11: =IF(5 = Q11, F11 * -1, F11) -> 21425.73 | AM11: =IF(5 = Q11, G11 * -1, G11) -> 21782 | AN11: =IF(5 = Q11, H11 * -1, H11) -> 21759 | AO11: =IF(5 = Q11, I11 * -1, I11) -> 21726 | AP11: =IF(5 = Q11, J11 * -1, J11) -> 22206 | AQ11: =IF(5 = Q11, K11 * -1, K11) -> 22206 | AR11: 19456.2 | AS11: =IF(5 = Q11, L11 * -1, L11) -> 19456.2 | AT11: =IF(5 = Q11, M11 * -1, M11) -> 19477.3 | AU11: =IF(5 = Q11, N11 * -1, N11) -> 18907 | AV11: =IF(5 = Q11, O11 * -1, O11) -> 237733.52
A12: 41200 | B12: Gain On Lease | C12: 0 | D12: 0 | E12: 75 | F12: 22.12 | G12: 0 | H12: 0 | I12: 0 | J12: 0 | K12: 0 | L12: 0 | M12: 0 | N12: 0 | O12: 97.12 | Q12: 4 | R12: Fox Ridge Apartments | U12: 101108 | V12: Fox Ridge Apartments | W12: 100075993 | X12: Net Income|Net Operating Income|Income|Rental Income|Rent | Y12: Net Income|Net Operating Income|Income|Rental Income|Rent- Base Rent | Z12: 00000|00000|00000|00000|00001 | AA12: Gain On Lease | AB12: 41200 | AC12: 1 | AD12: 95147 | AE12: 2 | AF12: 4|4|4|4|4 | AG12: 0 | AH12: 0 | AI12: =IF(5 = Q12, C12 * -1, C12) -> 0 | AJ12: =IF(5 = Q12, D12 * -1, D12) -> 0 | AK12: =IF(5 = Q12, E12 * -1, E12) -> 75 | AL12: =IF(5 = Q12, F12 * -1, F12) -> 22.12 | AM12: =IF(5 = Q12, G12 * -1, G12) -> 0 | AN12: =IF(5 = Q12, H12 * -1, H12) -> 0 | AO12: =IF(5 = Q12, I12 * -1, I12) -> 0 | AP12: =IF(5 = Q12, J12 * -1, J12) -> 0 | AQ12: =IF(5 = Q12, K12 * -1, K12) -> 0 | AR12: 0 | AS12: =IF(5 = Q12, L12 * -1, L12) -> 0 | AT12: =IF(5 = Q12, M12 * -1, M12) -> 0 | AU12: =IF(5 = Q12, N12 * -1, N12) -> 0 | AV12: =IF(5 = Q12, O12 * -1, O12) -> 97.12
A13: 41300 | B13: Loss On Lease | C13: 0 | D13: 0 | E13: -4772.62 | F13: -1332.25 | G13: -1632.25 | H13: -1632.25 | I13: -1632.25 | J13: -2112.25 | K13: -2083.25 | L13: 0 | M13: 0 | N13: 0 | O13: -15197.12 | Q13: 4 | R13: Fox Ridge Apartments | U13: 101108 | V13: Fox Ridge Apartments | W13: 100075993 | X13: Net Income|Net Operating Income|Income|Rental Income|Rent | Y13: Net Income|Net Operating Income|Income|Rental Income|Rent- Base Rent | Z13: 00000|00000|00000|00000|00001 | AA13: Loss On Lease | AB13: 41300 | AC13: 1 | AD13: 95151 | AE13: 3 | AF13: 4|4|4|4|4 | AG13: 1 | AH13: 0 | AI13: =IF(5 = Q13, C13 * -1, C13) -> 0 | AJ13: =IF(5 = Q13, D13 * -1, D13) -> 0 | AK13: =IF(5 = Q13, E13 * -1, E13) -> -4772.62 | AL13: =IF(5 = Q13, F13 * -1, F13) -> -1332.25 | AM13: =IF(5 = Q13, G13 * -1, G13) -> -1632.25 | AN13: =IF(5 = Q13, H13 * -1, H13) -> -1632.25 | AO13: =IF(5 = Q13, I13 * -1, I13) -> -1632.25 | AP13: =IF(5 = Q13, J13 * -1, J13) -> -2112.25 | AQ13: =IF(5 = Q13, K13 * -1, K13) -> -2083.25 | AR13: 0 | AS13: =IF(5 = Q13, L13 * -1, L13) -> 0 | AT13: =IF(5 = Q13, M13 * -1, M13) -> 0 | AU13: =IF(5 = Q13, N13 * -1, N13) -> 0 | AV13: =IF(5 = Q13, O13 * -1, O13) -> -15197.12
A14: 41400 | B14: Vacancy Loss | C14: 0 | D14: 0 | E14: 0 | F14: -471.06 | G14: 0 | H14: 0 | I14: 0 | J14: 0 | K14: -29 | L14: 0 | M14: 0 | N14: 0 | O14: -500.06 | Q14: 4 | R14: Fox Ridge Apartments | U14: 101108 | V14: Fox Ridge Apartments | W14: 100075993 | X14: Net Income|Net Operating Income|Income|Rental Income|Rent | Y14: Net Income|Net Operating Income|Income|Rental Income|Rent- Base Rent | Z14: 00000|00000|00000|00000|00001 | AA14: Vacancy Loss | AB14: 41400 | AC14: 1 | AD14: 95172 | AE14: 4 | AF14: 4|4|4|4|4 | AG14: 0 | AH14: 0 | AI14: =IF(5 = Q14, C14 * -1, C14) -> 0 | AJ14: =IF(5 = Q14, D14 * -1, D14) -> 0 | AK14: =IF(5 = Q14, E14 * -1, E14) -> 0 | AL14: =IF(5 = Q14, F14 * -1, F14) -> -471.06 | AM14: =IF(5 = Q14, G14 * -1, G14) -> 0 | AN14: =IF(5 = Q14, H14 * -1, H14) -> 0 | AO14: =IF(5 = Q14, I14 * -1, I14) -> 0 | AP14: =IF(5 = Q14, J14 * -1, J14) -> 0 | AQ14: =IF(5 = Q14, K14 * -1, K14) -> -29 | AR14: 0 | AS14: =IF(5 = Q14, L14 * -1, L14) -> 0 | AT14: =IF(5 = Q14, M14 * -1, M14) -> 0 | AU14: =IF(5 = Q14, N14 * -1, N14) -> 0 | AV14: =IF(5 = Q14, O14 * -1, O14) -> -500.06
A15: 41450 | B15: Delinquency | C15: 0 | D15: 0 | E15: 4772.62 | F15: -2975.62 | G15: -935 | H15: -862 | I15: -180 | J15: -63 | K15: 88 | L15: 0 | M15: 0 | N15: 0 | O15: -155 | Q15: 4 | R15: Fox Ridge Apartments | U15: 101108 | V15: Fox Ridge Apartments | W15: 100075993 | X15: Net Income|Net Operating Income|Income|Rental Income|Rent | Y15: Net Income|Net Operating Income|Income|Rental Income|Rent- Base Rent | Z15: 00000|00000|00000|00000|00001 | AA15: Delinquency | AB15: 41450 | AC15: 1 | AD15: 109134 | AE15: 5 | AF15: 4|4|4|4|4 | AG15: 1 | AH15: 0 | AI15: =IF(5 = Q15, C15 * -1, C15) -> 0 | AJ15: =IF(5 = Q15, D15 * -1, D15) -> 0 | AK15: =IF(5 = Q15, E15 * -1, E15) -> 4772.62 | AL15: =IF(5 = Q15, F15 * -1, F15) -> -2975.62 | AM15: =IF(5 = Q15, G15 * -1, G15) -> -935 | AN15: =IF(5 = Q15, H15 * -1, H15) -> -862 | AO15: =IF(5 = Q15, I15 * -1, I15) -> -180 | AP15: =IF(5 = Q15, J15 * -1, J15) -> -63 | AQ15: =IF(5 = Q15, K15 * -1, K15) -> 88 | AR15: 0 | AS15: =IF(5 = Q15, L15 * -1, L15) -> 0 | AT15: =IF(5 = Q15, M15 * -1, M15) -> 0 | AU15: =IF(5 = Q15, N15 * -1, N15) -> 0 | AV15: =IF(5 = Q15, O15 * -1, O15) -> -155
B16: Rent | C16: =IF(5 = Q16, AI16 * -1, AI16) -> 19758.05 | D16: =IF(5 = Q16, AJ16 * -1, AJ16) -> 16982.31 | E16: =IF(5 = Q16, AK16 * -1, AK16) -> 12122.93 | F16: =IF(5 = Q16, AL16 * -1, AL16) -> 16668.92 | G16: =IF(5 = Q16, AM16 * -1, AM16) -> 19214.75 | H16: =IF(5 = Q16, AN16 * -1, AN16) -> 19264.75 | I16: =IF(5 = Q16, AO16 * -1, AO16) -> 19913.75 | J16: =IF(5 = Q16, AP16 * -1, AP16) -> 20030.75 | K16: =IF(5 = Q16, AQ16 * -1, AQ16) -> 20181.75 | L16: =IF(5 = Q16, AS16 * -1, AS16) -> 19456.2 | M16: =IF(5 = Q16, AT16 * -1, AT16) -> 19477.3 | N16: =IF(5 = Q16, AU16 * -1, AU16) -> 18907 | O16: =IF(5 = Q16, AV16 * -1, AV16) -> 221978.46 | Q16: 4 | R16: =R15 -> Fox Ridge Apartments | S16: =S15 -> 0 | T16: =T15 -> 0 | AI16: =SUM(AI11:AI15) -> 19758.05 | AJ16: 16982.31 | AK16: 12122.93 | AL16: 16668.92 | AM16: 19214.75 | AN16: 19264.75 | AO16: 19913.75 | AP16: 20030.75 | AQ16: 20181.75 | AS16: =SUM(AS11:AS15) -> 19456.2 | AT16: =SUM(AT11:AT15) -> 19477.3 | AU16: =SUM(AU11:AU15) -> 18907 | AV16: =SUM(AV11:AV15) -> 221978.46
A18: Rent-Other
A19: 42000 | B19: Rent-Other | C19: 0 | D19: 471.07 | E19: 0 | F19: 0 | G19: 0 | H19: 0 | I19: 0 | J19: 0 | K19: 0 | L19: 0 | M19: 0 | N19: 0 | O19: 471.07 | Q19: 4 | R19: Fox Ridge Apartments | U19: 101108 | V19: Fox Ridge Apartments | W19: 100075993 | X19: Net Income|Net Operating Income|Income|Rental Income|Rent-Other | Y19: Net Income|Net Operating Income|Income|Rental Income|Rent-Other | Z19: 00000|00000|00000|00000|00002 | AA19: Rent-Other | AB19: 42000 | AC19: 1 | AD19: 105616 | AE19: 0 | AF19: 4|4|4|4|4 | AG19: 0 | AH19: 0 | AI19: =IF(5 = Q19, C19 * -1, C19) -> 0 | AJ19: =IF(5 = Q19, D19 * -1, D19) -> 471.07 | AK19: =IF(5 = Q19, E19 * -1, E19) -> 0 | AL19: =IF(5 = Q19, F19 * -1, F19) -> 0 | AM19: =IF(5 = Q19, G19 * -1, G19) -> 0 | AN19: =IF(5 = Q19, H19 * -1, H19) -> 0 | AO19: =IF(5 = Q19, I19 * -1, I19) -> 0 | AP19: =IF(5 = Q19, J19 * -1, J19) -> 0 | AQ19: =IF(5 = Q19, K19 * -1, K19) -> 0 | AR19: 0 | AS19: =IF(5 = Q19, L19 * -1, L19) -> 0 | AT19: =IF(5 = Q19, M19 * -1, M19) -> 0 | AU19: =IF(5 = Q19, N19 * -1, N19) -> 0 | AV19: =IF(5 = Q19, O19 * -1, O19) -> 471.07
A20: 42200 | B20: Bonafide Carpet Cleaning Income | C20: 0 | D20: 0 | E20: 178 | F20: 0 | G20: 0 | H20: 0 | I20: 0 | J20: 0 | K20: 0 | L20: 0 | M20: 0 | N20: 0 | O20: 178 | Q20: 4 | R20: Fox Ridge Apartments | U20: 101108 | V20: Fox Ridge Apartments | W20: 100075993 | X20: Net Income|Net Operating Income|Income|Rental Income|Rent-Other | Y20: Net Income|Net Operating Income|Income|Rental Income|Rent-Other | Z20: 00000|00000|00000|00000|00002 | AA20: Bonafide Carpet Cleaning Income | AB20: 42200 | AC20: 1 | AD20: 105618 | AE20: 2 | AF20: 4|4|4|4|4 | AG20: 0 | AH20: 0 | AI20: 0 | AJ20: 0 | AK20: 178 | AL20: 0 | AM20: 0 | AN20: 0 | AO20: 0 | AP20: 0 | AQ20: 0 | AR20: 0 | AS20: 0 | AT20: 0 | AU20: 0 | AV20: 178
A21: 42400 | B21: Convenience Fee Income | C21: 63.84 | D21: 59.84 | E21: 39.84 | F21: 0 | G21: 0 | H21: 0 | I21: 0 | J21: 0 | K21: 0 | L21: 0 | M21: 0 | N21: 0 | O21: 163.52 | Q21: 4 | R21: Fox Ridge Apartments | U21: 101108 | V21: Fox Ridge Apartments | W21: 100075993 | X21: Net Income|Net Operating Income|Income|Rental Income|Rent-Other | Y21: Net Income|Net Operating Income|Income|Rental Income|Rent-Other | Z21: 00000|00000|00000|00000|00002 | AA21: Convenience Fee Income | AB21: 42400 | AC21: 1 | AD21: 105620 | AE21: 4 | AF21: 4|4|4|4|4 | AG21: 0 | AH21: 0 | AI21: 63.84 | AJ21: 59.84 | AK21: 39.84 | AL21: 0 | AM21: 0 | AN21: 0 | AO21: 0 | AP21: 0 | AQ21: 0 | AR21: 0 | AS21: 0 | AT21: 0 | AU21: 0 | AV21: 163.52
A22: 42500 | B22: Damages Owed Upon Move-out | C22: 0 | D22: 0 | E22: 0 | F22: 0 | G22: 0 | H22: 0 | I22: 0 | J22: 0 | K22: 0 | L22: 115.97 | M22: 0 | N22: 55 | O22: 170.97 | Q22: 4 | R22: Fox Ridge Apartments | U22: 101108 | V22: Fox Ridge Apartments | W22: 100075993 | X22: Net Income|Net Operating Income|Income|Rental Income|Rent-Other | Y22: Net Income|Net Operating Income|Income|Rental Income|Rent-Other | Z22: 00000|00000|00000|00000|00002 | AA22: Damages Owed Upon Move-out | AB22: 42500 | AC22: 1 | AD22: 95144 | AE22: 5 | AF22: 4|4|4|4|4 | AG22: 0 | AH22: 1 | AI22: 0 | AJ22: 0 | AK22: 0 | AL22: 0 | AM22: 0 | AN22: 0 | AO22: 0 | AP22: 0 | AQ22: 0 | AR22: 115.97 | AS22: 115.97 | AT22: 0 | AU22: 55 | AV22: 170.97
A23: 42700 | B23: Late Fee Income | C23: 39 | D23: 0 | E23: 0 | F23: 0 | G23: 0 | H23: 0 | I23: 375 | J23: 300 | K23: 450 | L23: 25 | M23: -100 | N23: 125 | O23: 1214 | Q23: 4 | R23: Fox Ridge Apartments | U23: 101108 | V23: Fox Ridge Apartments | W23: 100075993 | X23: Net Income|Net Operating Income|Income|Rental Income|Rent-Other | Y23: Net Income|Net Operating Income|Income|Rental Income|Rent-Other | Z23: 00000|00000|00000|00000|00002 | AA23: Late Fee Income | AB23: 42700 | AC23: 1 | AD23: 95150 | AE23: 9 | AF23: 4|4|4|4|4 | AG23: 1 | AH23: 1 | AI23: 39 | AJ23: 0 | AK23: 0 | AL23: 0 | AM23: 0 | AN23: 0 | AO23: 375 | AP23: 300 | AQ23: 450 | AR23: 25 | AS23: 25 | AT23: -100 | AU23: 125 | AV23: 1214
A24: 43100 | B24: NSF Fee Income | C24: 0 | D24: 0 | E24: 0 | F24: 45 | G24: 45 | H24: 0 | I24: 0 | J24: 0 | K24: 0 | L24: 0 | M24: 0 | N24: 0 | O24: 90 | Q24: 4 | R24: Fox Ridge Apartments | U24: 101108 | V24: Fox Ridge Apartments | W24: 100075993 | X24: Net Income|Net Operating Income|Income|Rental Income|Rent-Other | Y24: Net Income|Net Operating Income|Income|Rental Income|Rent-Other | Z24: 00000|00000|00000|00000|00002 | AA24: NSF Fee Income | AB24: 43100 | AC24: 1 | AD24: 95167 | AE24: 13 | AF24: 4|4|4|4|4 | AG24: 0 | AH24: 0 | AI24: 0 | AJ24: 0 | AK24: 0 | AL24: 45 | AM24: 45 | AN24: 0 | AO24: 0 | AP24: 0 | AQ24: 0 | AR24: 0 | AS24: 0 | AT24: 0 | AU24: 0 | AV24: 90
A25: 43300 | B25: Pet Rent | C25: 124 | D25: 350 | E25: 51 | F25: 50 | G25: 58 | H25: 75 | I25: 75 | J25: 75 | K25: 75 | L25: 75 | M25: 75 | N25: 75 | O25: 1158 | Q25: 4 | R25: Fox Ridge Apartments | U25: 101108 | V25: Fox Ridge Apartments | W25: 100075993 | X25: Net Income|Net Operating Income|Income|Rental Income|Rent-Other | Y25: Net Income|Net Operating Income|Income|Rental Income|Rent-Other | Z25: 00000|00000|00000|00000|00002 | AA25: Pet Rent | AB25: 43300 | AC25: 1 | AD25: 105626 | AE25: 14 | AF25: 4|4|4|4|4 | AG25: 1 | AH25: 1 | AI25: 124 | AJ25: 350 | AK25: 51 | AL25: 50 | AM25: 58 | AN25: 75 | AO25: 75 | AP25: 75 | AQ25: 75 | AR25: 75 | AS25: 75 | AT25: 75 | AU25: 75 | AV25: 1158
A26: 43500 | B26: Renters Insurance Income | C26: 0 | D26: 0 | E26: 0 | F26: 0 | G26: 0 | H26: 0 | I26: 0 | J26: 4.5 | K26: 257.66 | L26: 225 | M26: 225 | N26: 210 | O26: 922.16 | Q26: 4 | R26: Fox Ridge Apartments | U26: 101108 | V26: Fox Ridge Apartments | W26: 100075993 | X26: Net Income|Net Operating Income|Income|Rental Income|Rent-Other | Y26: Net Income|Net Operating Income|Income|Rental Income|Rent-Other | Z26: 00000|00000|00000|00000|00002 | AA26: Renters Insurance Income | AB26: 43500 | AC26: 1 | AD26: 105629 | AE26: 17 | AF26: 4|4|4|4|4 | AG26: 0 | AH26: 1 | AI26: 0 | AJ26: 0 | AK26: 0 | AL26: 0 | AM26: 0 | AN26: 0 | AO26: 0 | AP26: 4.5 | AQ26: 257.66 | AR26: 225 | AS26: 225 | AT26: 225 | AU26: 210 | AV26: 922.16
A27: 43700 | B27: Sec Dep Forfeiture (Income) | C27: 0 | D27: 559.45 | E27: 0 | F27: 0 | G27: 0 | H27: 0 | I27: 0 | J27: 0 | K27: 0 | L27: 0 | M27: 0 | N27: 0 | O27: 559.45 | Q27: 4 | R27: Fox Ridge Apartments | U27: 101108 | V27: Fox Ridge Apartments | W27: 100075993 | X27: Net Income|Net Operating Income|Income|Rental Income|Rent-Other | Y27: Net Income|Net Operating Income|Income|Rental Income|Rent-Other | Z27: 00000|00000|00000|00000|00002 | AA27: Sec Dep Forfeiture (Income) | AB27: 43700 | AC27: 1 | AD27: 105631 | AE27: 19 | AF27: 4|4|4|4|4 | AG27: 0 | AH27: 0 | AI27: 0 | AJ27: 559.45 | AK27: 0 | AL27: 0 | AM27: 0 | AN27: 0 | AO27: 0 | AP27: 0 | AQ27: 0 | AR27: 0 | AS27: 0 | AT27: 0 | AU27: 0 | AV27: 559.45
A28: 43800 | B28: Smoking Charge (Monthly) | C28: 20 | D28: 60 | E28: 0 | F28: 20 | G28: 20 | H28: 20 | I28: 20 | J28: 20 | K28: 20 | L28: 20 | M28: 20 | N28: 20 | O28: 260 | Q28: 4 | R28: Fox Ridge Apartments | U28: 101108 | V28: Fox Ridge Apartments | W28: 100075993 | X28: Net Income|Net Operating Income|Income|Rental Income|Rent-Other | Y28: Net Income|Net Operating Income|Income|Rental Income|Rent-Other | Z28: 00000|00000|00000|00000|00002 | AA28: Smoking Charge (Monthly) | AB28: 43800 | AC28: 1 | AD28: 105632 | AE28: 20 | AF28: 4|4|4|4|4 | AG28: 1 | AH28: 1 | AI28: 20 | AJ28: 60 | AK28: 0 | AL28: 20 | AM28: 20 | AN28: 20 | AO28: 20 | AP28: 20 | AQ28: 20 | AR28: 20 | AS28: 20 | AT28: 20 | AU28: 20 | AV28: 260
A29: 45100 | B29: Application Fee Income | C29: 0 | D29: 0 | E29: 0 | F29: 0 | G29: 0 | H29: 0 | I29: 0 | J29: 0 | K29: 60 | L29: 0 | M29: 0 | N29: 0 | O29: 60 | Q29: 4 | R29: Fox Ridge Apartments | U29: 101108 | V29: Fox Ridge Apartments | W29: 100075993 | X29: Net Income|Net Operating Income|Income|Rental Income|Rent-Other | Y29: Net Income|Net Operating Income|Income|Rental Income|Rent-Other | Z29: 00000|00000|00000|00000|00002 | AA29: Application Fee Income | AB29: 45100 | AC29: 1 | AD29: 95139 | AE29: 27 | AF29: 4|4|4|4|4 | AG29: 0 | AH29: 0 | AI29: 0 | AJ29: 0 | AK29: 0 | AL29: 0 | AM29: 0 | AN29: 0 | AO29: 0 | AP29: 0 | AQ29: 60 | AR29: 0 | AS29: 0 | AT29: 0 | AU29: 0 | AV29: 60
A30: 45750 | B30: Water & Sewer Income | C30: 539 | D30: 728.9 | E30: 519 | F30: 592.27 | G30: 737 | H30: 743 | I30: 776 | J30: 776 | K30: 776 | L30: 747 | M30: 747 | N30: 708 | O30: 8389.17 | Q30: 4 | R30: Fox Ridge Apartments | U30: 101108 | V30: Fox Ridge Apartments | W30: 100075993 | X30: Net Income|Net Operating Income|Income|Rental Income|Rent-Other | Y30: Net Income|Net Operating Income|Income|Rental Income|Rent-Other | Z30: 00000|00000|00000|00000|00002 | AA30: Water & Sewer Income | AB30: 45750 | AC30: 1 | AD30: 105649 | AE30: 30 | AF30: 4|4|4|4|4 | AG30: 1 | AH30: 1 | AI30: 539 | AJ30: 728.9 | AK30: 519 | AL30: 592.27 | AM30: 737 | AN30: 743 | AO30: 776 | AP30: 776 | AQ30: 776 | AR30: 747 | AS30: 747 | AT30: 747 | AU30: 708 | AV30: 8389.17
A31: 44300 | B31: Rent Reporting | C31: 0 | D31: 0 | E31: 0 | F31: 0 | G31: 0 | H31: 8.95 | I31: 8.95 | J31: 8.95 | K31: 8.95 | L31: 8.95 | M31: 8.95 | N31: 8.95 | O31: 62.65 | Q31: 4 | R31: Fox Ridge Apartments | U31: 101108 | V31: Fox Ridge Apartments | W31: 100075993 | X31: Net Income|Net Operating Income|Income|Rental Income|Rent-Other | Y31: Net Income|Net Operating Income|Income|Rental Income|Rent-Other | Z31: 00000|00000|00000|00000|00002 | AA31: Rent Reporting | AB31: 44300 | AC31: 1 | AD31: 95157 | AE31: 41 | AF31: 4|4|4|4|4 | AG31: 1 | AH31: 1 | AI31: 0 | AJ31: 0 | AK31: 0 | AL31: 0 | AM31: 0 | AN31: 8.95 | AO31: 8.95 | AP31: 8.95 | AQ31: 8.95 | AR31: 8.95 | AS31: 8.95 | AT31: 8.95 | AU31: 8.95 | AV31: 62.65
B32: Rent-Other | C32: =IF(5 = Q32, AI32 * -1, AI32) -> 785.84 | D32: =IF(5 = Q32, AJ32 * -1, AJ32) -> 2229.26 | E32: =IF(5 = Q32, AK32 * -1, AK32) -> 787.84 | F32: =IF(5 = Q32, AL32 * -1, AL32) -> 707.27 | G32: =IF(5 = Q32, AM32 * -1, AM32) -> 860 | H32: =IF(5 = Q32, AN32 * -1, AN32) -> 846.95 | I32: =IF(5 = Q32, AO32 * -1, AO32) -> 1254.95 | J32: =IF(5 = Q32, AP32 * -1, AP32) -> 1184.45 | K32: =IF(5 = Q32, AQ32 * -1, AQ32) -> 1647.61 | L32: =IF(5 = Q32, AS32 * -1, AS32) -> 1216.92 | M32: =IF(5 = Q32, AT32 * -1, AT32) -> 975.95 | N32: =IF(5 = Q32, AU32 * -1, AU32) -> 1201.95 | O32: =IF(5 = Q32, AV32 * -1, AV32) -> 13698.99 | Q32: 4 | R32: =R31 -> Fox Ridge Apartments | S32: =S31 -> 0 | T32: =T31 -> 0 | AI32: =SUM(AI19:AI31) -> 785.84 | AJ32: 2229.26 | AK32: 787.84 | AL32: 707.27 | AM32: 860 | AN32: 846.95 | AO32: 1254.95 | AP32: 1184.45 | AQ32: 1647.61 | AS32: =SUM(AS19:AS31) -> 1216.92 | AT32: =SUM(AT19:AT31) -> 975.95 | AU32: =SUM(AU19:AU31) -> 1201.95 | AV32: =SUM(AV19:AV31) -> 13698.99
B34: Rental Income | C34: =IF(5 = Q34, AI34 * -1, AI34) -> 20543.89 | D34: =IF(5 = Q34, AJ34 * -1, AJ34) -> 19211.57 | E34: =IF(5 = Q34, AK34 * -1, AK34) -> 12910.77 | F34: =IF(5 = Q34, AL34 * -1, AL34) -> 17376.19 | G34: =IF(5 = Q34, AM34 * -1, AM34) -> 20074.75 | H34: =IF(5 = Q34, AN34 * -1, AN34) -> 20111.7 | I34: =IF(5 = Q34, AO34 * -1, AO34) -> 21168.7 | J34: =IF(5 = Q34, AP34 * -1, AP34) -> 21215.2 | K34: =IF(5 = Q34, AQ34 * -1, AQ34) -> 21829.36 | L34: =IF(5 = Q34, AS34 * -1, AS34) -> 20673.12 | M34: =IF(5 = Q34, AT34 * -1, AT34) -> 20453.25 | N34: =IF(5 = Q34, AU34 * -1, AU34) -> 20108.95 | O34: =IF(5 = Q34, AV34 * -1, AV34) -> 235677.45 | Q34: 4 | R34: =R31 -> Fox Ridge Apartments | S34: =S31 -> 0 | T34: =T31 -> 0 | AI34: =SUM(AI11:AI15)+SUM(AI19:AI31) -> 20543.89 | AJ34: 19211.57 | AK34: 12910.77 | AL34: 17376.19 | AM34: 20074.75 | AN34: 20111.7 | AO34: 21168.7 | AP34: 21215.2 | AQ34: 21829.36 | AS34: =SUM(AS11:AS15)+SUM(AS19:AS31) -> 20673.12 | AT34: =SUM(AT11:AT15)+SUM(AT19:AT31) -> 20453.25 | AU34: =SUM(AU11:AU15)+SUM(AU19:AU31) -> 20108.95 | AV34: =SUM(AV11:AV15)+SUM(AV19:AV31) -> 235677.45
B36: Income | C36: =IF(5 = Q36, AI36 * -1, AI36) -> 20543.89 | D36: =IF(5 = Q36, AJ36 * -1, AJ36) -> 19211.57 | E36: =IF(5 = Q36, AK36 * -1, AK36) -> 12910.77 | F36: =IF(5 = Q36, AL36 * -1, AL36) -> 17376.19 | G36: =IF(5 = Q36, AM36 * -1, AM36) -> 20074.75 | H36: =IF(5 = Q36, AN36 * -1, AN36) -> 20111.7 | I36: =IF(5 = Q36, AO36 * -1, AO36) -> 21168.7 | J36: =IF(5 = Q36, AP36 * -1, AP36) -> 21215.2 | K36: =IF(5 = Q36, AQ36 * -1, AQ36) -> 21829.36 | L36: =IF(5 = Q36, AS36 * -1, AS36) -> 20673.12 | M36: =IF(5 = Q36, AT36 * -1, AT36) -> 20453.25 | N36: =IF(5 = Q36, AU36 * -1, AU36) -> 20108.95 | O36: =IF(5 = Q36, AV36 * -1, AV36) -> 235677.45 | Q36: 4 | R36: =R31 -> Fox Ridge Apartments | S36: =S31 -> 0 | T36: =T31 -> 0 | AI36: =SUM(AI11:AI15)+SUM(AI19:AI31) -> 20543.89 | AJ36: 19211.57 | AK36: 12910.77 | AL36: 17376.19 | AM36: 20074.75 | AN36: 20111.7 | AO36: 21168.7 | AP36: 21215.2 | AQ36: 21829.36 | AS36: =SUM(AS11:AS15)+SUM(AS19:AS31) -> 20673.12 | AT36: =SUM(AT11:AT15)+SUM(AT19:AT31) -> 20453.25 | AU36: =SUM(AU11:AU15)+SUM(AU19:AU31) -> 20108.95 | AV36: =SUM(AV11:AV15)+SUM(AV19:AV31) -> 235677.45
A38: Operating Expenses
A39: Advertising
A40: 50000 | B40: Advertising - Internet and Paper | C40: 0 | D40: 227 | E40: 227 | F40: 0 | G40: 0 | H40: 0 | I40: 227 | J40: 0 | K40: 0 | L40: 0 | M40: 0 | N40: 0 | O40: 681 | Q40: 5 | R40: Fox Ridge Apartments | U40: 101108 | V40: Fox Ridge Apartments | W40: 100075993 | X40: Net Income|Net Operating Income|Operating Expenses|Advertising | Y40: Net Income|Net Operating Income|Operating Expenses|Advertising | Z40: 00000|00000|00001|00000 | AA40: Advertising - Internet and Paper | AB40: 50000 | AC40: 1 | AD40: 105681 | AE40: 0 | AF40: 4|4|5|5 | AG40: 1 | AH40: 0 | AI40: =IF(5 = Q40, C40 * -1, C40) -> 0 | AJ40: =IF(5 = Q40, D40 * -1, D40) -> -227 | AK40: =IF(5 = Q40, E40 * -1, E40) -> -227 | AL40: =IF(5 = Q40, F40 * -1, F40) -> 0 | AM40: =IF(5 = Q40, G40 * -1, G40) -> 0 | AN40: =IF(5 = Q40, H40 * -1, H40) -> 0 | AO40: =IF(5 = Q40, I40 * -1, I40) -> -227 | AP40: =IF(5 = Q40, J40 * -1, J40) -> 0 | AQ40: =IF(5 = Q40, K40 * -1, K40) -> 0 | AR40: 0 | AS40: =IF(5 = Q40, L40 * -1, L40) -> 0 | AT40: =IF(5 = Q40, M40 * -1, M40) -> 0 | AU40: =IF(5 = Q40, N40 * -1, N40) -> 0 | AV40: =IF(5 = Q40, O40 * -1, O40) -> -681
B41: Advertising | C41: =IF(5 = Q41, AI41 * -1, AI41) -> 0 | D41: =IF(5 = Q41, AJ41 * -1, AJ41) -> 227 | E41: =IF(5 = Q41, AK41 * -1, AK41) -> 227 | F41: =IF(5 = Q41, AL41 * -1, AL41) -> 0 | G41: =IF(5 = Q41, AM41 * -1, AM41) -> 0 | H41: =IF(5 = Q41, AN41 * -1, AN41) -> 0 | I41: =IF(5 = Q41, AO41 * -1, AO41) -> 227 | J41: =IF(5 = Q41, AP41 * -1, AP41) -> 0 | K41: =IF(5 = Q41, AQ41 * -1, AQ41) -> 0 | L41: =IF(5 = Q41, AS41 * -1, AS41) -> 0 | M41: =IF(5 = Q41, AT41 * -1, AT41) -> 0 | N41: =IF(5 = Q41, AU41 * -1, AU41) -> 0 | O41: =IF(5 = Q41, AV41 * -1, AV41) -> 681 | Q41: 5 | R41: =R40 -> Fox Ridge Apartments | S41: =S40 -> 0 | T41: =T40 -> 0 | AI41: =SUM(AI40:AI40) -> 0 | AJ41: -227 | AK41: -227 | AL41: 0 | AM41: 0 | AN41: 0 | AO41: -227 | AP41: 0 | AQ41: 0 | AS41: =SUM(AS40:AS40) -> 0 | AT41: =SUM(AT40:AT40) -> 0 | AU41: =SUM(AU40:AU40) -> 0 | AV41: =SUM(AV40:AV40) -> -681
A43: Auto
A44: 51220 | B44: Monthly gasoline allowance | C44: 0 | D44: 0 | E44: 0 | F44: 0 | G44: 0 | H44: 0 | I44: 0 | J44: 0 | K44: 0 | L44: 0 | M44: 0 | N44: 0 | O44: 0 | Q44: 5 | R44: Fox Ridge Apartments | U44: 101108 | V44: Fox Ridge Apartments | W44: 100075993 | X44: Net Income|Net Operating Income|Operating Expenses|Auto | Y44: Net Income|Net Operating Income|Operating Expenses|Auto | Z44: 00000|00000|00001|00001 | AA44: Monthly gasoline allowance | AB44: 51220 | AC44: 1 | AD44: 105692 | AE44: 9 | AF44: 4|4|5|5 | AG44: 1 | AH44: 1 | AI44: =IF(5 = Q44, C44 * -1, C44) -> 0 | AJ44: =IF(5 = Q44, D44 * -1, D44) -> 0 | AK44: =IF(5 = Q44, E44 * -1, E44) -> 0 | AL44: =IF(5 = Q44, F44 * -1, F44) -> 0 | AM44: =IF(5 = Q44, G44 * -1, G44) -> 0 | AN44: =IF(5 = Q44, H44 * -1, H44) -> 0 | AO44: =IF(5 = Q44, I44 * -1, I44) -> 0 | AP44: =IF(5 = Q44, J44 * -1, J44) -> 0 | AQ44: =IF(5 = Q44, K44 * -1, K44) -> 0 | AR44: -12.5 | AS44: =IF(5 = Q44, L44 * -1, L44) -> 0 | AT44: =IF(5 = Q44, M44 * -1, M44) -> 0 | AU44: =IF(5 = Q44, N44 * -1, N44) -> 0 | AV44: =IF(5 = Q44, O44 * -1, O44) -> 0
B45: Auto | C45: =IF(5 = Q45, AI45 * -1, AI45) -> 0 | D45: =IF(5 = Q45, AJ45 * -1, AJ45) -> 0 | E45: =IF(5 = Q45, AK45 * -1, AK45) -> 0 | F45: =IF(5 = Q45, AL45 * -1, AL45) -> 0 | G45: =IF(5 = Q45, AM45 * -1, AM45) -> 0 | H45: =IF(5 = Q45, AN45 * -1, AN45) -> 0 | I45: =IF(5 = Q45, AO45 * -1, AO45) -> 0 | J45: =IF(5 = Q45, AP45 * -1, AP45) -> 0 | K45: =IF(5 = Q45, AQ45 * -1, AQ45) -> 0 | L45: =IF(5 = Q45, AS45 * -1, AS45) -> 0 | M45: =IF(5 = Q45, AT45 * -1, AT45) -> 0 | N45: =IF(5 = Q45, AU45 * -1, AU45) -> 0 | O45: =IF(5 = Q45, AV45 * -1, AV45) -> 0 | Q45: 5 | R45: =R44 -> Fox Ridge Apartments | S45: =S44 -> 0 | T45: =T44 -> 0 | AI45: =SUM(AI44:AI44) -> 0 | AJ45: =SUM(AJ44:AJ44) -> 0 | AK45: =SUM(AK44:AK44) -> 0 | AL45: =SUM(AL44:AL44) -> 0 | AM45: =SUM(AM44:AM44) -> 0 | AN45: =SUM(AN44:AN44) -> 0 | AO45: =SUM(AO44:AO44) -> 0 | AP45: =SUM(AP44:AP44) -> 0 | AQ45: =SUM(AQ44:AQ44) -> 0 | AS45: =SUM(AS44:AS44) -> 0 | AT45: =SUM(AT44:AT44) -> 0 | AU45: =SUM(AU44:AU44) -> 0 | AV45: =SUM(AV44:AV44) -> 0
A47: Cleaning & Maintenance
A48: 52120 | B48: Cleaning Expense | C48: 0 | D48: 0 | E48: 265 | F48: 820 | G48: 0 | H48: 0 | I48: 0 | J48: 0 | K48: 0 | L48: 0 | M48: 0 | N48: 345 | O48: 1430 | Q48: 5 | R48: Fox Ridge Apartments | U48: 101108 | V48: Fox Ridge Apartments | W48: 100075993 | X48: Net Income|Net Operating Income|Operating Expenses|Cleaning & Maintenance | Y48: Net Income|Net Operating Income|Operating Expenses|Cleaning & Maintenance | Z48: 00000|00000|00001|00002 | AA48: Cleaning Expense | AB48: 52120 | AC48: 1 | AD48: 105696 | AE48: 1 | AF48: 4|4|5|5 | AG48: 0 | AH48: 1 | AI48: =IF(5 = Q48, C48 * -1, C48) -> 0 | AJ48: =IF(5 = Q48, D48 * -1, D48) -> 0 | AK48: =IF(5 = Q48, E48 * -1, E48) -> -265 | AL48: =IF(5 = Q48, F48 * -1, F48) -> -820 | AM48: =IF(5 = Q48, G48 * -1, G48) -> 0 | AN48: =IF(5 = Q48, H48 * -1, H48) -> 0 | AO48: =IF(5 = Q48, I48 * -1, I48) -> 0 | AP48: =IF(5 = Q48, J48 * -1, J48) -> 0 | AQ48: =IF(5 = Q48, K48 * -1, K48) -> 0 | AR48: 0 | AS48: =IF(5 = Q48, L48 * -1, L48) -> 0 | AT48: =IF(5 = Q48, M48 * -1, M48) -> 0 | AU48: =IF(5 = Q48, N48 * -1, N48) -> -345 | AV48: =IF(5 = Q48, O48 * -1, O48) -> -1430
A49: 52140 | B49: Garbage Removal Expense | C49: 211.59 | D49: 201.59 | E49: 201.59 | F49: 201.59 | G49: 201.59 | H49: 201.59 | I49: 201.59 | J49: 201.59 | K49: 201.59 | L49: 225.78 | M49: 225.78 | N49: 225.78 | O49: 2501.65 | Q49: 5 | R49: Fox Ridge Apartments | U49: 101108 | V49: Fox Ridge Apartments | W49: 100075993 | X49: Net Income|Net Operating Income|Operating Expenses|Cleaning & Maintenance | Y49: Net Income|Net Operating Income|Operating Expenses|Cleaning & Maintenance | Z49: 00000|00000|00001|00002 | AA49: Garbage Removal Expense | AB49: 52140 | AC49: 1 | AD49: 105698 | AE49: 3 | AF49: 4|4|5|5 | AG49: 1 | AH49: 1 | AI49: =IF(5 = Q49, C49 * -1, C49) -> -211.59 | AJ49: =IF(5 = Q49, D49 * -1, D49) -> -201.59 | AK49: =IF(5 = Q49, E49 * -1, E49) -> -201.59 | AL49: =IF(5 = Q49, F49 * -1, F49) -> -201.59 | AM49: =IF(5 = Q49, G49 * -1, G49) -> -201.59 | AN49: =IF(5 = Q49, H49 * -1, H49) -> -201.59 | AO49: =IF(5 = Q49, I49 * -1, I49) -> -201.59 | AP49: =IF(5 = Q49, J49 * -1, J49) -> -201.59 | AQ49: =IF(5 = Q49, K49 * -1, K49) -> -201.59 | AR49: -225.78 | AS49: =IF(5 = Q49, L49 * -1, L49) -> -225.78 | AT49: =IF(5 = Q49, M49 * -1, M49) -> -225.78 | AU49: =IF(5 = Q49, N49 * -1, N49) -> -225.78 | AV49: =IF(5 = Q49, O49 * -1, O49) -> -2501.65
A50: 52150 | B50: Landscaping & Snow Removal | C50: 0 | D50: 501.13 | E50: 1033.9 | F50: 1155.23 | G50: 1769.76 | H50: 1086.65 | I50: 1533.71 | J50: 0 | K50: 1488.87 | L50: 278 | M50: 0 | N50: 159.12 | O50: 9006.37 | Q50: 5 | R50: Fox Ridge Apartments | U50: 101108 | V50: Fox Ridge Apartments | W50: 100075993 | X50: Net Income|Net Operating Income|Operating Expenses|Cleaning & Maintenance | Y50: Net Income|Net Operating Income|Operating Expenses|Cleaning & Maintenance | Z50: 00000|00000|00001|00002 | AA50: Landscaping & Snow Removal | AB50: 52150 | AC50: 1 | AD50: 105699 | AE50: 4 | AF50: 4|4|5|5 | AG50: 1 | AH50: 1 | AI50: =IF(5 = Q50, C50 * -1, C50) -> 0 | AJ50: =IF(5 = Q50, D50 * -1, D50) -> -501.13 | AK50: =IF(5 = Q50, E50 * -1, E50) -> -1033.9 | AL50: =IF(5 = Q50, F50 * -1, F50) -> -1155.23 | AM50: =IF(5 = Q50, G50 * -1, G50) -> -1769.76 | AN50: =IF(5 = Q50, H50 * -1, H50) -> -1086.65 | AO50: =IF(5 = Q50, I50 * -1, I50) -> -1533.71 | AP50: =IF(5 = Q50, J50 * -1, J50) -> 0 | AQ50: =IF(5 = Q50, K50 * -1, K50) -> -1488.87 | AR50: -278 | AS50: =IF(5 = Q50, L50 * -1, L50) -> -278 | AT50: =IF(5 = Q50, M50 * -1, M50) -> 0 | AU50: =IF(5 = Q50, N50 * -1, N50) -> -159.12 | AV50: =IF(5 = Q50, O50 * -1, O50) -> -9006.37
A51: 52170 | B51: Pest Control | C51: 155.15 | D51: 0 | E51: 0 | F51: 0 | G51: 0 | H51: 0 | I51: 0 | J51: 0 | K51: 0 | L51: 0 | M51: 0 | N51: 0 | O51: 155.15 | Q51: 5 | R51: Fox Ridge Apartments | U51: 101108 | V51: Fox Ridge Apartments | W51: 100075993 | X51: Net Income|Net Operating Income|Operating Expenses|Cleaning & Maintenance | Y51: Net Income|Net Operating Income|Operating Expenses|Cleaning & Maintenance | Z51: 00000|00000|00001|00002 | AA51: Pest Control | AB51: 52170 | AC51: 1 | AD51: 105701 | AE51: 6 | AF51: 4|4|5|5 | AG51: 0 | AH51: 0 | AI51: =IF(5 = Q51, C51 * -1, C51) -> -155.15 | AJ51: =IF(5 = Q51, D51 * -1, D51) -> 0 | AK51: =IF(5 = Q51, E51 * -1, E51) -> 0 | AL51: =IF(5 = Q51, F51 * -1, F51) -> 0 | AM51: =IF(5 = Q51, G51 * -1, G51) -> 0 | AN51: =IF(5 = Q51, H51 * -1, H51) -> 0 | AO51: =IF(5 = Q51, I51 * -1, I51) -> 0 | AP51: =IF(5 = Q51, J51 * -1, J51) -> 0 | AQ51: =IF(5 = Q51, K51 * -1, K51) -> 0 | AR51: 0 | AS51: =IF(5 = Q51, L51 * -1, L51) -> 0 | AT51: =IF(5 = Q51, M51 * -1, M51) -> 0 | AU51: =IF(5 = Q51, N51 * -1, N51) -> 0 | AV51: =IF(5 = Q51, O51 * -1, O51) -> -155.15
B52: Cleaning & Maintenance | C52: =IF(5 = Q52, AI52 * -1, AI52) -> 366.74 | D52: =IF(5 = Q52, AJ52 * -1, AJ52) -> 702.72 | E52: =IF(5 = Q52, AK52 * -1, AK52) -> 1500.49 | F52: =IF(5 = Q52, AL52 * -1, AL52) -> 2176.82 | G52: =IF(5 = Q52, AM52 * -1, AM52) -> 1971.35 | H52: =IF(5 = Q52, AN52 * -1, AN52) -> 1288.24 | I52: =IF(5 = Q52, AO52 * -1, AO52) -> 1735.3 | J52: =IF(5 = Q52, AP52 * -1, AP52) -> 201.59 | K52: =IF(5 = Q52, AQ52 * -1, AQ52) -> 1690.46 | L52: =IF(5 = Q52, AS52 * -1, AS52) -> 503.78 | M52: =IF(5 = Q52, AT52 * -1, AT52) -> 225.78 | N52: =IF(5 = Q52, AU52 * -1, AU52) -> 729.9 | O52: =IF(5 = Q52, AV52 * -1, AV52) -> 13093.17 | Q52: 5 | R52: =#REF! ->  | S52: =#REF! ->  | T52: =#REF! ->  | AI52: =SUM(AI48:AI51) -> -366.74 | AJ52: =SUM(AJ48:AJ51) -> -702.72 | AK52: =SUM(AK48:AK51) -> -1500.49 | AL52: =SUM(AL48:AL51) -> -2176.82 | AM52: =SUM(AM48:AM51) -> -1971.35 | AN52: =SUM(AN48:AN51) -> -1288.24 | AO52: =SUM(AO48:AO51) -> -1735.3 | AP52: =SUM(AP48:AP51) -> -201.59 | AQ52: =SUM(AQ48:AQ51) -> -1690.46 | AS52: =SUM(AS48:AS51) -> -503.78 | AT52: =SUM(AT48:AT51) -> -225.78 | AU52: =SUM(AU48:AU51) -> -729.9 | AV52: =SUM(AV48:AV51) -> -13093.17
A54: Insurance
A55: 53500 | B55: Insurance Expense | C55: 790 | D55: 790 | E55: 797 | F55: 797 | G55: 797 | H55: 0 | I55: 879.67 | J55: 879.67 | K55: 879.67 | L55: 941.44 | M55: 949.16 | N55: 882.53 | O55: 9383.14 | Q55: 5 | R55: Fox Ridge Apartments | U55: 101108 | V55: Fox Ridge Apartments | W55: 100075993 | X55: Net Income|Net Operating Income|Operating Expenses|Insurance | Y55: Net Income|Net Operating Income|Operating Expenses|Insurance | Z55: 00000|00000|00001|00004 | AA55: Insurance Expense | AB55: 53500 | AC55: 1 | AD55: 105711 | AE55: 0 | AF55: 4|4|5|5 | AG55: 1 | AH55: 1 | AI55: =IF(5 = Q55, C55 * -1, C55) -> -790 | AJ55: =IF(5 = Q55, D55 * -1, D55) -> -790 | AK55: =IF(5 = Q55, E55 * -1, E55) -> -797 | AL55: =IF(5 = Q55, F55 * -1, F55) -> -797 | AM55: =IF(5 = Q55, G55 * -1, G55) -> -797 | AN55: =IF(5 = Q55, H55 * -1, H55) -> 0 | AO55: =IF(5 = Q55, I55 * -1, I55) -> -879.67 | AP55: =IF(5 = Q55, J55 * -1, J55) -> -879.67 | AQ55: =IF(5 = Q55, K55 * -1, K55) -> -879.67 | AR55: -941.44 | AS55: =IF(5 = Q55, L55 * -1, L55) -> -941.44 | AT55: =IF(5 = Q55, M55 * -1, M55) -> -949.16 | AU55: =IF(5 = Q55, N55 * -1, N55) -> -882.53 | AV55: =IF(5 = Q55, O55 * -1, O55) -> -9383.14
B56: Insurance | C56: =IF(5 = Q56, AI56 * -1, AI56) -> 790 | D56: =IF(5 = Q56, AJ56 * -1, AJ56) -> 790 | E56: =IF(5 = Q56, AK56 * -1, AK56) -> 797 | F56: =IF(5 = Q56, AL56 * -1, AL56) -> 797 | G56: =IF(5 = Q56, AM56 * -1, AM56) -> 797 | H56: =IF(5 = Q56, AN56 * -1, AN56) -> 0 | I56: =IF(5 = Q56, AO56 * -1, AO56) -> 879.67 | J56: =IF(5 = Q56, AP56 * -1, AP56) -> 879.67 | K56: =IF(5 = Q56, AQ56 * -1, AQ56) -> 879.67 | L56: =IF(5 = Q56, AS56 * -1, AS56) -> 941.44 | M56: =IF(5 = Q56, AT56 * -1, AT56) -> 949.16 | N56: =IF(5 = Q56, AU56 * -1, AU56) -> 882.53 | O56: =IF(5 = Q56, AV56 * -1, AV56) -> 9383.14 | Q56: 5 | R56: =R55 -> Fox Ridge Apartments | S56: =S55 -> 0 | T56: =T55 -> 0 | AI56: =SUM(AI55:AI55) -> -790 | AJ56: -790 | AK56: -797 | AL56: -797 | AM56: -797 | AN56: 0 | AO56: -879.67 | AP56: -879.67 | AQ56: -879.67 | AS56: =SUM(AS55:AS55) -> -941.44 | AT56: =SUM(AT55:AT55) -> -949.16 | AU56: =SUM(AU55:AU55) -> -882.53 | AV56: =SUM(AV55:AV55) -> -9383.14
A58: Legal & Professional
A59: 53850 | B59: Legal & Professional Fees | C59: 0 | D59: 0 | E59: 0 | F59: 0 | G59: 0 | H59: 0 | I59: 0 | J59: 0 | K59: 0 | L59: 0 | M59: 0 | N59: 0 | O59: 0 | Q59: 5 | R59: Fox Ridge Apartments | U59: 101108 | V59: Fox Ridge Apartments | W59: 100075993 | X59: Net Income|Net Operating Income|Operating Expenses|Legal & Professional | Y59: Net Income|Net Operating Income|Operating Expenses|Legal & Professional | Z59: 00000|00000|00001|00005 | AA59: Legal & Professional Fees | AB59: 53850 | AC59: 1 | AD59: 105714 | AE59: 0 | AF59: 4|4|5|5 | AG59: 0 | AH59: 0 | AI59: =IF(5 = Q59, C59 * -1, C59) -> 0 | AJ59: =IF(5 = Q59, D59 * -1, D59) -> 0 | AK59: =IF(5 = Q59, E59 * -1, E59) -> 0 | AL59: =IF(5 = Q59, F59 * -1, F59) -> 0 | AM59: =IF(5 = Q59, G59 * -1, G59) -> 0 | AN59: =IF(5 = Q59, H59 * -1, H59) -> 0 | AO59: =IF(5 = Q59, I59 * -1, I59) -> 0 | AP59: =IF(5 = Q59, J59 * -1, J59) -> 0 | AQ59: =IF(5 = Q59, K59 * -1, K59) -> 0 | AR59: -1450 | AS59: =IF(5 = Q59, L59 * -1, L59) -> 0 | AT59: =IF(5 = Q59, M59 * -1, M59) -> 0 | AU59: =IF(5 = Q59, N59 * -1, N59) -> 0 | AV59: =IF(5 = Q59, O59 * -1, O59) -> 0
B60: Legal & Professional | C60: =IF(5 = Q60, AI60 * -1, AI60) -> 0 | D60: =IF(5 = Q60, AJ60 * -1, AJ60) -> 0 | E60: =IF(5 = Q60, AK60 * -1, AK60) -> 0 | F60: =IF(5 = Q60, AL60 * -1, AL60) -> 0 | G60: =IF(5 = Q60, AM60 * -1, AM60) -> 0 | H60: =IF(5 = Q60, AN60 * -1, AN60) -> 0 | I60: =IF(5 = Q60, AO60 * -1, AO60) -> 0 | J60: =IF(5 = Q60, AP60 * -1, AP60) -> 0 | K60: =IF(5 = Q60, AQ60 * -1, AQ60) -> 0 | L60: =IF(5 = Q60, AS60 * -1, AS60) -> 0 | M60: =IF(5 = Q60, AT60 * -1, AT60) -> 0 | N60: =IF(5 = Q60, AU60 * -1, AU60) -> 0 | O60: =IF(5 = Q60, AV60 * -1, AV60) -> 0 | Q60: 5 | R60: =R59 -> Fox Ridge Apartments | S60: =S59 -> 0 | T60: =T59 -> 0 | AI60: =SUM(AI59:AI59) -> 0 | AJ60: 0 | AK60: 0 | AL60: 0 | AM60: 0 | AN60: 0 | AO60: 0 | AP60: 0 | AQ60: 0 | AS60: =SUM(AS59:AS59) -> 0 | AT60: =SUM(AT59:AT59) -> 0 | AU60: =SUM(AU59:AU59) -> 0 | AV60: =SUM(AV59:AV59) -> 0
A62: Management Fee Exp
A63: 54000 | B63: Management Fees Expense | C63: 1240.12 | D63: 1292.9 | E63: 1221.2 | F63: 1015.34 | G63: 1050.49 | H63: 1048.69 | I63: 1067.44 | J63: 1072.34 | K63: 1082.29 | L63: 1039.08 | M63: 1022.04 | N63: 1007.5 | O63: 13159.43 | Q63: 5 | R63: Fox Ridge Apartments | U63: 101108 | V63: Fox Ridge Apartments | W63: 100075993 | X63: Net Income|Net Operating Income|Operating Expenses|Management Fee Exp | Y63: Net Income|Net Operating Income|Operating Expenses|Management Fee Exp | Z63: 00000|00000|00001|00006 | AA63: Management Fees Expense | AB63: 54000 | AC63: 1 | AD63: 95154 | AE63: 1 | AF63: 4|4|5|5 | AG63: 1 | AH63: 1 | AI63: =IF(5 = Q63, C63 * -1, C63) -> -1240.12 | AJ63: =IF(5 = Q63, D63 * -1, D63) -> -1292.9 | AK63: =IF(5 = Q63, E63 * -1, E63) -> -1221.2 | AL63: =IF(5 = Q63, F63 * -1, F63) -> -1015.34 | AM63: =IF(5 = Q63, G63 * -1, G63) -> -1050.49 | AN63: =IF(5 = Q63, H63 * -1, H63) -> -1048.69 | AO63: =IF(5 = Q63, I63 * -1, I63) -> -1067.44 | AP63: =IF(5 = Q63, J63 * -1, J63) -> -1072.34 | AQ63: =IF(5 = Q63, K63 * -1, K63) -> -1082.29 | AR63: -1039.08 | AS63: =IF(5 = Q63, L63 * -1, L63) -> -1039.08 | AT63: =IF(5 = Q63, M63 * -1, M63) -> -1022.04 | AU63: =IF(5 = Q63, N63 * -1, N63) -> -1007.5 | AV63: =IF(5 = Q63, O63 * -1, O63) -> -13159.43
B64: Management Fee Exp | C64: =IF(5 = Q64, AI64 * -1, AI64) -> 1240.12 | D64: =IF(5 = Q64, AJ64 * -1, AJ64) -> 1292.9 | E64: =IF(5 = Q64, AK64 * -1, AK64) -> 1221.2 | F64: =IF(5 = Q64, AL64 * -1, AL64) -> 1015.34 | G64: =IF(5 = Q64, AM64 * -1, AM64) -> 1050.49 | H64: =IF(5 = Q64, AN64 * -1, AN64) -> 1048.69 | I64: =IF(5 = Q64, AO64 * -1, AO64) -> 1067.44 | J64: =IF(5 = Q64, AP64 * -1, AP64) -> 1072.34 | K64: =IF(5 = Q64, AQ64 * -1, AQ64) -> 1082.29 | L64: =IF(5 = Q64, AS64 * -1, AS64) -> 1039.08 | M64: =IF(5 = Q64, AT64 * -1, AT64) -> 1022.04 | N64: =IF(5 = Q64, AU64 * -1, AU64) -> 1007.5 | O64: =IF(5 = Q64, AV64 * -1, AV64) -> 13159.43 | Q64: 5 | R64: =R63 -> Fox Ridge Apartments | S64: =S63 -> 0 | T64: =T63 -> 0 | AI64: =SUM(AI63:AI63) -> -1240.12 | AJ64: -1292.9 | AK64: -1221.2 | AL64: -1015.34 | AM64: -1050.49 | AN64: -1048.69 | AO64: -1067.44 | AP64: -1072.34 | AQ64: -1082.29 | AS64: =SUM(AS63:AS63) -> -1039.08 | AT64: =SUM(AT63:AT63) -> -1022.04 | AU64: =SUM(AU63:AU63) -> -1007.5 | AV64: =SUM(AV63:AV63) -> -13159.43
A66: Interest Exp
A67: 54500 | B67: Mortgage Interest | C67: 0 | D67: 0 | E67: 0 | F67: 0 | G67: 0 | H67: 0 | I67: 0 | J67: 0 | K67: 0 | L67: 0 | M67: 0 | N67: 0 | O67: 0 | Q67: 5 | R67: Fox Ridge Apartments | U67: 101108 | V67: Fox Ridge Apartments | W67: 100075993 | X67: Net Income|Net Operating Income|Operating Expenses|Interest Exp | Y67: Net Income|Net Operating Income|Operating Expenses|Interest Exp | Z67: 00000|00000|00001|00007 | AA67: Mortgage Interest | AB67: 54500 | AC67: 1 | AD67: 105716 | AE67: 0 | AF67: 4|4|5|5 | AG67: 1 | AH67: 1 | AI67: =IF(5 = Q67, C67 * -1, C67) -> 0 | AJ67: =IF(5 = Q67, D67 * -1, D67) -> 0 | AK67: =IF(5 = Q67, E67 * -1, E67) -> 0 | AL67: =IF(5 = Q67, F67 * -1, F67) -> 0 | AM67: =IF(5 = Q67, G67 * -1, G67) -> 0 | AN67: =IF(5 = Q67, H67 * -1, H67) -> 0 | AO67: =IF(5 = Q67, I67 * -1, I67) -> 0 | AP67: =IF(5 = Q67, J67 * -1, J67) -> 0 | AQ67: =IF(5 = Q67, K67 * -1, K67) -> 0 | AR67: -2360.6 | AS67: =IF(5 = Q67, L67 * -1, L67) -> 0 | AT67: =IF(5 = Q67, M67 * -1, M67) -> 0 | AU67: =IF(5 = Q67, N67 * -1, N67) -> 0 | AV67: =IF(5 = Q67, O67 * -1, O67) -> 0
B68: Interest Exp | C68: =IF(5 = Q68, AI68 * -1, AI68) -> 0 | D68: =IF(5 = Q68, AJ68 * -1, AJ68) -> 0 | E68: =IF(5 = Q68, AK68 * -1, AK68) -> 0 | F68: =IF(5 = Q68, AL68 * -1, AL68) -> 0 | G68: =IF(5 = Q68, AM68 * -1, AM68) -> 0 | H68: =IF(5 = Q68, AN68 * -1, AN68) -> 0 | I68: =IF(5 = Q68, AO68 * -1, AO68) -> 0 | J68: =IF(5 = Q68, AP68 * -1, AP68) -> 0 | K68: =IF(5 = Q68, AQ68 * -1, AQ68) -> 0 | L68: =IF(5 = Q68, AS68 * -1, AS68) -> 0 | M68: =IF(5 = Q68, AT68 * -1, AT68) -> 0 | N68: =IF(5 = Q68, AU68 * -1, AU68) -> 0 | O68: =IF(5 = Q68, AV68 * -1, AV68) -> 0 | Q68: 5 | R68: =R67 -> Fox Ridge Apartments | S68: =S67 -> 0 | T68: =T67 -> 0 | AI68: =SUM(AI67:AI67) -> 0 | AJ68: 0 | AK68: 0 | AL68: 0 | AM68: 0 | AN68: 0 | AO68: 0 | AP68: 0 | AQ68: 0 | AS68: =SUM(AS67:AS67) -> 0 | AT68: =SUM(AT67:AT67) -> 0 | AU68: =SUM(AU67:AU67) -> 0 | AV68: =SUM(AV67:AV67) -> 0
A70: Rent Exp
A71: 59000 | B71: Rent Expense | C71: 0 | D71: 0 | E71: 0 | F71: 0 | G71: 0 | H71: 0 | I71: 0 | J71: 0 | K71: 0 | L71: 0 | M71: 0 | N71: 0 | O71: 0 | Q71: 5 | R71: Fox Ridge Apartments | U71: 101108 | V71: Fox Ridge Apartments | W71: 100075993 | X71: Net Income|Net Operating Income|Operating Expenses|Rent Exp | Y71: Net Income|Net Operating Income|Operating Expenses|Rent Exp | Z71: 00000|00000|00001|00008 | AA71: Rent Expense | AB71: 59000 | AC71: 1 | AD71: 105722 | AE71: 1 | AF71: 4|4|5|5 | AG71: 1 | AH71: 1 | AI71: =IF(5 = Q71, C71 * -1, C71) -> 0 | AJ71: =IF(5 = Q71, D71 * -1, D71) -> 0 | AK71: =IF(5 = Q71, E71 * -1, E71) -> 0 | AL71: =IF(5 = Q71, F71 * -1, F71) -> 0 | AM71: =IF(5 = Q71, G71 * -1, G71) -> 0 | AN71: =IF(5 = Q71, H71 * -1, H71) -> 0 | AO71: =IF(5 = Q71, I71 * -1, I71) -> 0 | AP71: =IF(5 = Q71, J71 * -1, J71) -> 0 | AQ71: =IF(5 = Q71, K71 * -1, K71) -> 0 | AR71: -208.95 | AS71: =IF(5 = Q71, L71 * -1, L71) -> 0 | AT71: =IF(5 = Q71, M71 * -1, M71) -> 0 | AU71: =IF(5 = Q71, N71 * -1, N71) -> 0 | AV71: =IF(5 = Q71, O71 * -1, O71) -> 0
B72: Rent Exp | C72: =IF(5 = Q72, AI72 * -1, AI72) -> 0 | D72: =IF(5 = Q72, AJ72 * -1, AJ72) -> 0 | E72: =IF(5 = Q72, AK72 * -1, AK72) -> 0 | F72: =IF(5 = Q72, AL72 * -1, AL72) -> 0 | G72: =IF(5 = Q72, AM72 * -1, AM72) -> 0 | H72: =IF(5 = Q72, AN72 * -1, AN72) -> 0 | I72: =IF(5 = Q72, AO72 * -1, AO72) -> 0 | J72: =IF(5 = Q72, AP72 * -1, AP72) -> 0 | K72: =IF(5 = Q72, AQ72 * -1, AQ72) -> 0 | L72: =IF(5 = Q72, AS72 * -1, AS72) -> 0 | M72: =IF(5 = Q72, AT72 * -1, AT72) -> 0 | N72: =IF(5 = Q72, AU72 * -1, AU72) -> 0 | O72: =IF(5 = Q72, AV72 * -1, AV72) -> 0 | Q72: 5 | R72: =R71 -> Fox Ridge Apartments | S72: =S71 -> 0 | T72: =T71 -> 0 | AI72: =SUM(AI71:AI71) -> 0 | AJ72: 0 | AK72: 0 | AL72: 0 | AM72: 0 | AN72: 0 | AO72: 0 | AP72: 0 | AQ72: 0 | AS72: =SUM(AS71:AS71) -> 0 | AT72: =SUM(AT71:AT71) -> 0 | AU72: =SUM(AU71:AU71) -> 0 | AV72: =SUM(AV71:AV71) -> 0
A74: Taxes
A75: 60130 | B75: Property Taxes' Expense | C75: 0 | D75: 0 | E75: 0 | F75: 0 | G75: 0 | H75: 0 | I75: 0 | J75: 0 | K75: 22430.29 | L75: 0 | M75: 0 | N75: 0 | O75: 22430.29 | Q75: 5 | R75: Fox Ridge Apartments | U75: 101108 | V75: Fox Ridge Apartments | W75: 100075993 | X75: Net Income|Net Operating Income|Operating Expenses|Taxes | Y75: Net Income|Net Operating Income|Operating Expenses|Taxes | Z75: 00000|00000|00001|00009 | AA75: Property Taxes' Expense | AB75: 60130 | AC75: 1 | AD75: 105732 | AE75: 2 | AF75: 4|4|5|5 | AG75: 0 | AH75: 0 | AI75: =IF(5 = Q75, C75 * -1, C75) -> 0 | AJ75: =IF(5 = Q75, D75 * -1, D75) -> 0 | AK75: =IF(5 = Q75, E75 * -1, E75) -> 0 | AL75: =IF(5 = Q75, F75 * -1, F75) -> 0 | AM75: =IF(5 = Q75, G75 * -1, G75) -> 0 | AN75: =IF(5 = Q75, H75 * -1, H75) -> 0 | AO75: =IF(5 = Q75, I75 * -1, I75) -> 0 | AP75: =IF(5 = Q75, J75 * -1, J75) -> 0 | AQ75: =IF(5 = Q75, K75 * -1, K75) -> -22430.29 | AR75: 0 | AS75: =IF(5 = Q75, L75 * -1, L75) -> 0 | AT75: =IF(5 = Q75, M75 * -1, M75) -> 0 | AU75: =IF(5 = Q75, N75 * -1, N75) -> 0 | AV75: =IF(5 = Q75, O75 * -1, O75) -> -22430.29
B76: Taxes | C76: =IF(5 = Q76, AI76 * -1, AI76) -> 0 | D76: =IF(5 = Q76, AJ76 * -1, AJ76) -> 0 | E76: =IF(5 = Q76, AK76 * -1, AK76) -> 0 | F76: =IF(5 = Q76, AL76 * -1, AL76) -> 0 | G76: =IF(5 = Q76, AM76 * -1, AM76) -> 0 | H76: =IF(5 = Q76, AN76 * -1, AN76) -> 0 | I76: =IF(5 = Q76, AO76 * -1, AO76) -> 0 | J76: =IF(5 = Q76, AP76 * -1, AP76) -> 0 | K76: =IF(5 = Q76, AQ76 * -1, AQ76) -> 22430.29 | L76: =IF(5 = Q76, AS76 * -1, AS76) -> 0 | M76: =IF(5 = Q76, AT76 * -1, AT76) -> 0 | N76: =IF(5 = Q76, AU76 * -1, AU76) -> 0 | O76: =IF(5 = Q76, AV76 * -1, AV76) -> 22430.29 | Q76: 5 | R76: =R75 -> Fox Ridge Apartments | S76: =S75 -> 0 | T76: =T75 -> 0 | AI76: =SUM(AI75:AI75) -> 0 | AJ76: 0 | AK76: 0 | AL76: 0 | AM76: 0 | AN76: 0 | AO76: 0 | AP76: 0 | AQ76: -22430.29 | AS76: =SUM(AS75:AS75) -> 0 | AT76: =SUM(AT75:AT75) -> 0 | AU76: =SUM(AU75:AU75) -> 0 | AV76: =SUM(AV75:AV75) -> -22430.29
A78: Utilities
A79: 60170 | B79: Electric (utilities) | C79: 183.16 | D79: 190.44 | E79: 149.37 | F79: 144.82 | G79: 141.95 | H79: 143.76 | I79: 155.66 | J79: 181.61 | K79: 245 | L79: 220.07 | M79: 209.4 | N79: 286.01 | O79: 2251.25 | Q79: 5 | R79: Fox Ridge Apartments | U79: 101108 | V79: Fox Ridge Apartments | W79: 100075993 | X79: Net Income|Net Operating Income|Operating Expenses|Utilities | Y79: Net Income|Net Operating Income|Operating Expenses|Utilities | Z79: 00000|00000|00001|00010 | AA79: Electric (utilities) | AB79: 60170 | AC79: 1 | AD79: 105736 | AE79: 1 | AF79: 4|4|5|5 | AG79: 1 | AH79: 1 | AI79: =IF(5 = Q79, C79 * -1, C79) -> -183.16 | AJ79: =IF(5 = Q79, D79 * -1, D79) -> -190.44 | AK79: =IF(5 = Q79, E79 * -1, E79) -> -149.37 | AL79: =IF(5 = Q79, F79 * -1, F79) -> -144.82 | AM79: =IF(5 = Q79, G79 * -1, G79) -> -141.95 | AN79: =IF(5 = Q79, H79 * -1, H79) -> -143.76 | AO79: =IF(5 = Q79, I79 * -1, I79) -> -155.66 | AP79: =IF(5 = Q79, J79 * -1, J79) -> -181.61 | AQ79: =IF(5 = Q79, K79 * -1, K79) -> -245 | AR79: -220.07 | AS79: =IF(5 = Q79, L79 * -1, L79) -> -220.07 | AT79: =IF(5 = Q79, M79 * -1, M79) -> -209.4 | AU79: =IF(5 = Q79, N79 * -1, N79) -> -286.01 | AV79: =IF(5 = Q79, O79 * -1, O79) -> -2251.25
A80: 60180 | B80: Gas (utilities/heat) | C80: 921.56 | D80: 614.73 | E80: 227.25 | F80: 250.69 | G80: 208.64 | H80: 137.18 | I80: 145.9 | J80: 232.57 | K80: 734.73 | L80: 1896.26 | M80: 2225.98 | N80: 1230.06 | O80: 8825.55 | Q80: 5 | R80: Fox Ridge Apartments | U80: 101108 | V80: Fox Ridge Apartments | W80: 100075993 | X80: Net Income|Net Operating Income|Operating Expenses|Utilities | Y80: Net Income|Net Operating Income|Operating Expenses|Utilities | Z80: 00000|00000|00001|00010 | AA80: Gas (utilities/heat) | AB80: 60180 | AC80: 1 | AD80: 105737 | AE80: 2 | AF80: 4|4|5|5 | AG80: 1 | AH80: 1 | AI80: =IF(5 = Q80, C80 * -1, C80) -> -921.56 | AJ80: =IF(5 = Q80, D80 * -1, D80) -> -614.73 | AK80: =IF(5 = Q80, E80 * -1, E80) -> -227.25 | AL80: =IF(5 = Q80, F80 * -1, F80) -> -250.69 | AM80: =IF(5 = Q80, G80 * -1, G80) -> -208.64 | AN80: =IF(5 = Q80, H80 * -1, H80) -> -137.18 | AO80: =IF(5 = Q80, I80 * -1, I80) -> -145.9 | AP80: =IF(5 = Q80, J80 * -1, J80) -> -232.57 | AQ80: =IF(5 = Q80, K80 * -1, K80) -> -734.73 | AR80: -1896.26 | AS80: =IF(5 = Q80, L80 * -1, L80) -> -1896.26 | AT80: =IF(5 = Q80, M80 * -1, M80) -> -2225.98 | AU80: =IF(5 = Q80, N80 * -1, N80) -> -1230.06 | AV80: =IF(5 = Q80, O80 * -1, O80) -> -8825.55
A81: 60220 | B81: Vacant unit utilities Expense | C81: 0 | D81: 0 | E81: 24.44 | F81: 49.41 | G81: 0 | H81: 0 | I81: 0 | J81: 0 | K81: 0 | L81: 0 | M81: 22.44 | N81: 19.2 | O81: 115.49 | Q81: 5 | R81: Fox Ridge Apartments | U81: 101108 | V81: Fox Ridge Apartments | W81: 100075993 | X81: Net Income|Net Operating Income|Operating Expenses|Utilities | Y81: Net Income|Net Operating Income|Operating Expenses|Utilities | Z81: 00000|00000|00001|00010 | AA81: Vacant unit utilities Expense | AB81: 60220 | AC81: 1 | AD81: 105741 | AE81: 6 | AF81: 4|4|5|5 | AG81: 0 | AH81: 1 | AI81: =IF(5 = Q81, C81 * -1, C81) -> 0 | AJ81: =IF(5 = Q81, D81 * -1, D81) -> 0 | AK81: =IF(5 = Q81, E81 * -1, E81) -> -24.44 | AL81: =IF(5 = Q81, F81 * -1, F81) -> -49.41 | AM81: =IF(5 = Q81, G81 * -1, G81) -> 0 | AN81: =IF(5 = Q81, H81 * -1, H81) -> 0 | AO81: =IF(5 = Q81, I81 * -1, I81) -> 0 | AP81: =IF(5 = Q81, J81 * -1, J81) -> 0 | AQ81: =IF(5 = Q81, K81 * -1, K81) -> 0 | AR81: 0 | AS81: =IF(5 = Q81, L81 * -1, L81) -> 0 | AT81: =IF(5 = Q81, M81 * -1, M81) -> -22.44 | AU81: =IF(5 = Q81, N81 * -1, N81) -> -19.2 | AV81: =IF(5 = Q81, O81 * -1, O81) -> -115.49
A82: 60230 | B82: Water & Sewer Expense | C82: 1107.87 | D82: 1799.22 | E82: 835.3 | F82: 1106.92 | G82: 1120.67 | H82: 1309.89 | I82: 1116.32 | J82: 982.98 | K82: 1034.45 | L82: 1028.74 | M82: 1094.11 | N82: 1026.2 | O82: 13562.67 | Q82: 5 | R82: Fox Ridge Apartments | U82: 101108 | V82: Fox Ridge Apartments | W82: 100075993 | X82: Net Income|Net Operating Income|Operating Expenses|Utilities | Y82: Net Income|Net Operating Income|Operating Expenses|Utilities | Z82: 00000|00000|00001|00010 | AA82: Water & Sewer Expense | AB82: 60230 | AC82: 1 | AD82: 105742 | AE82: 7 | AF82: 4|4|5|5 | AG82: 1 | AH82: 1 | AI82: =IF(5 = Q82, C82 * -1, C82) -> -1107.87 | AJ82: =IF(5 = Q82, D82 * -1, D82) -> -1799.22 | AK82: =IF(5 = Q82, E82 * -1, E82) -> -835.3 | AL82: =IF(5 = Q82, F82 * -1, F82) -> -1106.92 | AM82: =IF(5 = Q82, G82 * -1, G82) -> -1120.67 | AN82: =IF(5 = Q82, H82 * -1, H82) -> -1309.89 | AO82: =IF(5 = Q82, I82 * -1, I82) -> -1116.32 | AP82: =IF(5 = Q82, J82 * -1, J82) -> -982.98 | AQ82: =IF(5 = Q82, K82 * -1, K82) -> -1034.45 | AR82: -1028.74 | AS82: =IF(5 = Q82, L82 * -1, L82) -> -1028.74 | AT82: =IF(5 = Q82, M82 * -1, M82) -> -1094.11 | AU82: =IF(5 = Q82, N82 * -1, N82) -> -1026.2 | AV82: =IF(5 = Q82, O82 * -1, O82) -> -13562.67
B83: Utilities | C83: =IF(5 = Q83, AI83 * -1, AI83) -> 2212.59 | D83: =IF(5 = Q83, AJ83 * -1, AJ83) -> 2604.39 | E83: =IF(5 = Q83, AK83 * -1, AK83) -> 1236.36 | F83: =IF(5 = Q83, AL83 * -1, AL83) -> 1551.84 | G83: =IF(5 = Q83, AM83 * -1, AM83) -> 1471.26 | H83: =IF(5 = Q83, AN83 * -1, AN83) -> 1590.83 | I83: =IF(5 = Q83, AO83 * -1, AO83) -> 1417.88 | J83: =IF(5 = Q83, AP83 * -1, AP83) -> 1397.16 | K83: =IF(5 = Q83, AQ83 * -1, AQ83) -> 2014.18 | L83: =IF(5 = Q83, AS83 * -1, AS83) -> 3145.07 | M83: =IF(5 = Q83, AT83 * -1, AT83) -> 3551.93 | N83: =IF(5 = Q83, AU83 * -1, AU83) -> 2561.47 | O83: =IF(5 = Q83, AV83 * -1, AV83) -> 24754.96 | Q83: 5 | R83: =R82 -> Fox Ridge Apartments | S83: =S82 -> 0 | T83: =T82 -> 0 | AI83: =SUM(AI79:AI82) -> -2212.59 | AJ83: =SUM(AJ79:AJ82) -> -2604.39 | AK83: =SUM(AK79:AK82) -> -1236.36 | AL83: =SUM(AL79:AL82) -> -1551.84 | AM83: =SUM(AM79:AM82) -> -1471.26 | AN83: =SUM(AN79:AN82) -> -1590.83 | AO83: =SUM(AO79:AO82) -> -1417.88 | AP83: =SUM(AP79:AP82) -> -1397.16 | AQ83: =SUM(AQ79:AQ82) -> -2014.18 | AS83: =SUM(AS79:AS82) -> -3145.07 | AT83: =SUM(AT79:AT82) -> -3551.93 | AU83: =SUM(AU79:AU82) -> -2561.47 | AV83: =SUM(AV79:AV82) -> -24754.96
A85: Salary & Wages
A86: 61130 | B86: Payroll- Salary and Wages | C86: 0 | D86: 0 | E86: 143.38 | F86: 91.76 | G86: 63.99 | H86: 81.57 | I86: 489.76 | J86: 276.7 | K86: 531.61 | L86: 919.52 | M86: 2627.76 | N86: 1597.76 | O86: 6823.81 | Q86: 5 | R86: Fox Ridge Apartments | U86: 101108 | V86: Fox Ridge Apartments | W86: 100075993 | X86: Net Income|Net Operating Income|Operating Expenses|Salary & Wages | Y86: Net Income|Net Operating Income|Operating Expenses|Salary & Wages | Z86: 00000|00000|00001|00011 | AA86: Payroll- Salary and Wages | AB86: 61130 | AC86: 1 | AD86: 106146 | AE86: 0 | AF86: 4|4|5|5 | AG86: 1 | AH86: 1 | AI86: =IF(5 = Q86, C86 * -1, C86) -> 0 | AJ86: =IF(5 = Q86, D86 * -1, D86) -> 0 | AK86: =IF(5 = Q86, E86 * -1, E86) -> -143.38 | AL86: =IF(5 = Q86, F86 * -1, F86) -> -91.76 | AM86: =IF(5 = Q86, G86 * -1, G86) -> -63.99 | AN86: =IF(5 = Q86, H86 * -1, H86) -> -81.57 | AO86: =IF(5 = Q86, I86 * -1, I86) -> -489.76 | AP86: =IF(5 = Q86, J86 * -1, J86) -> -276.7 | AQ86: =IF(5 = Q86, K86 * -1, K86) -> -531.61 | AR86: -919.52 | AS86: =IF(5 = Q86, L86 * -1, L86) -> -919.52 | AT86: =IF(5 = Q86, M86 * -1, M86) -> -2627.76 | AU86: =IF(5 = Q86, N86 * -1, N86) -> -1597.76 | AV86: =IF(5 = Q86, O86 * -1, O86) -> -6823.81
B87: Salary & Wages | C87: =IF(5 = Q87, AI87 * -1, AI87) -> 0 | D87: =IF(5 = Q87, AJ87 * -1, AJ87) -> 0 | E87: =IF(5 = Q87, AK87 * -1, AK87) -> 143.38 | F87: =IF(5 = Q87, AL87 * -1, AL87) -> 91.76 | G87: =IF(5 = Q87, AM87 * -1, AM87) -> 63.99 | H87: =IF(5 = Q87, AN87 * -1, AN87) -> 81.57 | I87: =IF(5 = Q87, AO87 * -1, AO87) -> 489.76 | J87: =IF(5 = Q87, AP87 * -1, AP87) -> 276.7 | K87: =IF(5 = Q87, AQ87 * -1, AQ87) -> 531.61 | L87: =IF(5 = Q87, AS87 * -1, AS87) -> 919.52 | M87: =IF(5 = Q87, AT87 * -1, AT87) -> 2627.76 | N87: =IF(5 = Q87, AU87 * -1, AU87) -> 1597.76 | O87: =IF(5 = Q87, AV87 * -1, AV87) -> 6823.81 | Q87: 5 | R87: =#REF! ->  | S87: =#REF! ->  | T87: =#REF! ->  | AI87: =SUM(AI86:AI86) -> 0 | AJ87: =SUM(AJ86:AJ86) -> 0 | AK87: =SUM(AK86:AK86) -> -143.38 | AL87: =SUM(AL86:AL86) -> -91.76 | AM87: =SUM(AM86:AM86) -> -63.99 | AN87: =SUM(AN86:AN86) -> -81.57 | AO87: =SUM(AO86:AO86) -> -489.76 | AP87: =SUM(AP86:AP86) -> -276.7 | AQ87: =SUM(AQ86:AQ86) -> -531.61 | AS87: =SUM(AS86:AS86) -> -919.52 | AT87: =SUM(AT86:AT86) -> -2627.76 | AU87: =SUM(AU86:AU86) -> -1597.76 | AV87: =SUM(AV86:AV86) -> -6823.81
A89: Supplies
A90: 58000 | B90: Supplies / Job Materials | C90: 1504.14 | D90: 1018.34 | E90: 43.24 | F90: 0 | G90: 18.97 | H90: 7.23 | I90: 365.26 | J90: 579.92 | K90: 85.59 | L90: 340.59 | M90: 362.84 | N90: 457.64 | O90: =SUM(C90:N90) -> 4783.76 | Q90: 5 | R90: Fox Ridge Apartments | U90: 101108 | V90: Fox Ridge Apartments | W90: 100075993 | X90: Net Income|Net Operating Income|Operating Expenses|Supplies | Y90: Net Income|Net Operating Income|Operating Expenses|Supplies | Z90: 00000|00000|00001|00012 | AA90: Supplies / Job Materials | AB90: 58000 | AC90: 1 | AD90: 105782 | AE90: 0 | AF90: 4|4|5|5 | AG90: 1 | AH90: 1 | AI90: =IF(5 = Q90, C90 * -1, C90) -> -1504.14 | AJ90: =IF(5 = Q90, D90 * -1, D90) -> -1018.34 | AK90: =IF(5 = Q90, E90 * -1, E90) -> -43.24 | AL90: =IF(5 = Q90, F90 * -1, F90) -> 0 | AM90: =IF(5 = Q90, G90 * -1, G90) -> -18.97 | AN90: =IF(5 = Q90, H90 * -1, H90) -> -7.23 | AO90: =IF(5 = Q90, I90 * -1, I90) -> -365.26 | AP90: =IF(5 = Q90, J90 * -1, J90) -> -579.92 | AQ90: =IF(5 = Q90, K90 * -1, K90) -> -85.59 | AR90: -340.59 | AS90: =IF(5 = Q90, L90 * -1, L90) -> -340.59 | AT90: =IF(5 = Q90, M90 * -1, M90) -> -362.84 | AU90: =IF(5 = Q90, N90 * -1, N90) -> -457.64 | AV90: =IF(5 = Q90, O90 * -1, O90) -> -4783.76
B91: Supplies | C91: =IF(5 = Q91, AI91 * -1, AI91) -> 1504.14 | D91: =IF(5 = Q91, AJ91 * -1, AJ91) -> 1018.34 | E91: =IF(5 = Q91, AK91 * -1, AK91) -> 43.24 | F91: =IF(5 = Q91, AL91 * -1, AL91) -> 0 | G91: =IF(5 = Q91, AM91 * -1, AM91) -> 18.97 | H91: =IF(5 = Q91, AN91 * -1, AN91) -> 7.23 | I91: =IF(5 = Q91, AO91 * -1, AO91) -> 365.26 | J91: =IF(5 = Q91, AP91 * -1, AP91) -> 579.92 | K91: =IF(5 = Q91, AQ91 * -1, AQ91) -> 85.59 | L91: =IF(5 = Q91, AS91 * -1, AS91) -> 340.59 | M91: =IF(5 = Q91, AT91 * -1, AT91) -> 362.84 | N91: =IF(5 = Q91, AU91 * -1, AU91) -> 457.64 | O91: =IF(5 = Q91, AV91 * -1, AV91) -> 4783.76 | Q91: 5 | R91: =R90 -> Fox Ridge Apartments | S91: =S90 -> 0 | T91: =T90 -> 0 | AI91: =SUM(AI90:AI90) -> -1504.14 | AJ91: -1018.34 | AK91: -43.24 | AL91: 0 | AM91: -18.97 | AN91: -7.23 | AO91: -365.26 | AP91: -579.92 | AQ91: -85.59 | AS91: =SUM(AS90:AS90) -> -340.59 | AT91: =SUM(AT90:AT90) -> -362.84 | AU91: =SUM(AU90:AU90) -> -457.64 | AV91: =SUM(AV90:AV90) -> -4783.76
A93: Repairs
A94: 55110 | B94: Appliance Repair | C94: 0 | D94: 0 | E94: 0 | F94: 0 | G94: 529.78 | H94: 0 | I94: 0 | J94: 0 | K94: 0 | L94: 0 | M94: 0 | N94: 135.04 | O94: 664.82 | Q94: 5 | R94: Fox Ridge Apartments | U94: 101108 | V94: Fox Ridge Apartments | W94: 100075993 | X94: Net Income|Net Operating Income|Operating Expenses|Repairs | Y94: Net Income|Net Operating Income|Operating Expenses|Repairs | Z94: 00000|00000|00001|00013 | AA94: Appliance Repair | AB94: 55110 | AC94: 1 | AD94: 105783 | AE94: 1 | AF94: 4|4|5|5 | AG94: 0 | AH94: 1 | AI94: =IF(5 = Q94, C94 * -1, C94) -> 0 | AJ94: =IF(5 = Q94, D94 * -1, D94) -> 0 | AK94: =IF(5 = Q94, E94 * -1, E94) -> 0 | AL94: =IF(5 = Q94, F94 * -1, F94) -> 0 | AM94: =IF(5 = Q94, G94 * -1, G94) -> -529.78 | AN94: =IF(5 = Q94, H94 * -1, H94) -> 0 | AO94: =IF(5 = Q94, I94 * -1, I94) -> 0 | AP94: =IF(5 = Q94, J94 * -1, J94) -> 0 | AQ94: =IF(5 = Q94, K94 * -1, K94) -> 0 | AR94: 0 | AS94: =IF(5 = Q94, L94 * -1, L94) -> 0 | AT94: =IF(5 = Q94, M94 * -1, M94) -> 0 | AU94: =IF(5 = Q94, N94 * -1, N94) -> -135.04 | AV94: =IF(5 = Q94, O94 * -1, O94) -> -664.82
A95: 55220 | B95: Paint (material) | C95: 0 | D95: 0 | E95: 130.43 | F95: 0 | G95: 0 | H95: 298.09 | I95: 0 | J95: 0 | K95: 0 | L95: 0 | M95: 0 | N95: 0 | O95: 428.52 | Q95: 5 | R95: Fox Ridge Apartments | U95: 101108 | V95: Fox Ridge Apartments | W95: 100075993 | X95: Net Income|Net Operating Income|Operating Expenses|Repairs | Y95: Net Income|Net Operating Income|Operating Expenses|Repairs | Z95: 00000|00000|00001|00013 | AA95: Paint (material) | AB95: 55220 | AC95: 1 | AD95: 105794 | AE95: 12 | AF95: 4|4|5|5 | AG95: 0 | AH95: 0 | AI95: 0 | AJ95: 0 | AK95: -130.43 | AL95: 0 | AM95: 0 | AN95: -298.09 | AO95: 0 | AP95: 0 | AQ95: 0 | AR95: 0 | AS95: 0 | AT95: 0 | AU95: 0 | AV95: -428.52
A96: 55240 | B96: Plumbing | C96: 0 | D96: 0 | E96: 0 | F96: 0 | G96: 0 | H96: 0 | I96: 0 | J96: 0 | K96: 0 | L96: 372.34 | M96: 0 | N96: 0 | O96: 372.34 | Q96: 5 | R96: Fox Ridge Apartments | U96: 101108 | V96: Fox Ridge Apartments | W96: 100075993 | X96: Net Income|Net Operating Income|Operating Expenses|Repairs | Y96: Net Income|Net Operating Income|Operating Expenses|Repairs | Z96: 00000|00000|00001|00013 | AA96: Plumbing | AB96: 55240 | AC96: 1 | AD96: 105796 | AE96: 14 | AF96: 4|4|5|5 | AG96: 0 | AH96: 0 | AI96: 0 | AJ96: 0 | AK96: 0 | AL96: 0 | AM96: 0 | AN96: 0 | AO96: 0 | AP96: 0 | AQ96: 0 | AR96: -372.34 | AS96: -372.34 | AT96: 0 | AU96: 0 | AV96: -372.34
A97: 56110 | B97: Carpet & flooring (labor) | C97: 0 | D97: 1608 | E97: 0 | F97: 0 | G97: 0 | H97: 0 | I97: 0 | J97: 0 | K97: 0 | L97: 0 | M97: 0 | N97: 0 | O97: 1608 | Q97: 5 | R97: Fox Ridge Apartments | U97: 101108 | V97: Fox Ridge Apartments | W97: 100075993 | X97: Net Income|Net Operating Income|Operating Expenses|Repairs | Y97: Net Income|Net Operating Income|Operating Expenses|Repairs | Z97: 00000|00000|00001|00013 | AA97: Carpet & flooring (labor) | AB97: 56110 | AC97: 1 | AD97: 105800 | AE97: 18 | AF97: 4|4|5|5 | AG97: 0 | AH97: 0 | AI97: 0 | AJ97: -1608 | AK97: 0 | AL97: 0 | AM97: 0 | AN97: 0 | AO97: 0 | AP97: 0 | AQ97: 0 | AR97: 0 | AS97: 0 | AT97: 0 | AU97: 0 | AV97: -1608
A98: 56120 | B98: Carpet & Flooring (material) | C98: 1747.96 | D98: 0 | E98: 0 | F98: 0 | G98: 0 | H98: 0 | I98: 0 | J98: 0 | K98: 0 | L98: 0 | M98: 0 | N98: 0 | O98: 1747.96 | Q98: 5 | R98: Fox Ridge Apartments | U98: 101108 | V98: Fox Ridge Apartments | W98: 100075993 | X98: Net Income|Net Operating Income|Operating Expenses|Repairs | Y98: Net Income|Net Operating Income|Operating Expenses|Repairs | Z98: 00000|00000|00001|00013 | AA98: Carpet & Flooring (material) | AB98: 56120 | AC98: 1 | AD98: 105801 | AE98: 19 | AF98: 4|4|5|5 | AG98: 0 | AH98: 0 | AI98: -1747.96 | AJ98: 0 | AK98: 0 | AL98: 0 | AM98: 0 | AN98: 0 | AO98: 0 | AP98: 0 | AQ98: 0 | AR98: 0 | AS98: 0 | AT98: 0 | AU98: 0 | AV98: -1747.96
A99: 60250 | B99: Fire Alarm/Suppression/Sprinkler Inspection | C99: 0 | D99: 0 | E99: 0 | F99: 0 | G99: 734.55 | H99: 0 | I99: 0 | J99: 0 | K99: 0 | L99: 0 | M99: 0 | N99: 0 | O99: 734.55 | Q99: 5 | R99: Fox Ridge Apartments | U99: 101108 | V99: Fox Ridge Apartments | W99: 100075993 | X99: Net Income|Net Operating Income|Operating Expenses|Repairs | Y99: Net Income|Net Operating Income|Operating Expenses|Repairs | Z99: 00000|00000|00001|00013 | AA99: Fire Alarm/Suppression/Sprinkler Inspection | AB99: 60250 | AC99: 1 | AD99: 105863 | AE99: 38 | AF99: 4|4|5|5 | AG99: 0 | AH99: 0 | AI99: 0 | AJ99: 0 | AK99: 0 | AL99: 0 | AM99: -734.55 | AN99: 0 | AO99: 0 | AP99: 0 | AQ99: 0 | AR99: 0 | AS99: 0 | AT99: 0 | AU99: 0 | AV99: -734.55
B100: Repairs | C100: =IF(5 = Q100, AI100 * -1, AI100) -> 1747.96 | D100: =IF(5 = Q100, AJ100 * -1, AJ100) -> 1608 | E100: =IF(5 = Q100, AK100 * -1, AK100) -> 130.43 | F100: =IF(5 = Q100, AL100 * -1, AL100) -> 0 | G100: =IF(5 = Q100, AM100 * -1, AM100) -> 1264.33 | H100: =IF(5 = Q100, AN100 * -1, AN100) -> 298.09 | I100: =IF(5 = Q100, AO100 * -1, AO100) -> 0 | J100: =IF(5 = Q100, AP100 * -1, AP100) -> 0 | K100: =IF(5 = Q100, AQ100 * -1, AQ100) -> 0 | L100: =IF(5 = Q100, AS100 * -1, AS100) -> 372.34 | M100: =IF(5 = Q100, AT100 * -1, AT100) -> 0 | N100: =IF(5 = Q100, AU100 * -1, AU100) -> 135.04 | O100: =IF(5 = Q100, AV100 * -1, AV100) -> 5556.19 | Q100: 5 | R100: =R99 -> Fox Ridge Apartments | S100: =S99 -> 0 | T100: =T99 -> 0 | AI100: =SUM(AI94:AI99) -> -1747.96 | AJ100: =SUM(AJ94:AJ99) -> -1608 | AK100: =SUM(AK94:AK99) -> -130.43 | AL100: =SUM(AL94:AL99) -> 0 | AM100: =SUM(AM94:AM99) -> -1264.33 | AN100: =SUM(AN94:AN99) -> -298.09 | AO100: =SUM(AO94:AO99) -> 0 | AP100: =SUM(AP94:AP99) -> 0 | AQ100: =SUM(AQ94:AQ99) -> 0 | AS100: =SUM(AS94:AS99) -> -372.34 | AT100: =SUM(AT94:AT99) -> 0 | AU100: =SUM(AU94:AU99) -> -135.04 | AV100: =SUM(AV94:AV99) -> -5556.19
A102: Appliances
A103: 56510 | B103: Appliances Expense | C103: 653.06 | D103: 0 | E103: 1350.4 | F103: 1197.43 | G103: 466 | H103: 0 | I103: 0 | J103: 0 | K103: 0 | L103: 0 | M103: 0 | N103: 0 | O103: 3666.89 | Q103: 5 | R103: Fox Ridge Apartments | U103: 101108 | V103: Fox Ridge Apartments | W103: 100075993 | X103: Net Income|Net Operating Income|Operating Expenses|Appliances | Y103: Net Income|Net Operating Income|Operating Expenses|Appliances | Z103: 00000|00000|00001|00015 | AA103: Appliances Expense | AB103: 56510 | AC103: 1 | AD103: 105809 | AE103: 2 | AF103: 4|4|5|5 | AG103: 0 | AH103: 0 | AI103: =IF(5 = Q103, C103 * -1, C103) -> -653.06 | AJ103: =IF(5 = Q103, D103 * -1, D103) -> 0 | AK103: =IF(5 = Q103, E103 * -1, E103) -> -1350.4 | AL103: =IF(5 = Q103, F103 * -1, F103) -> -1197.43 | AM103: =IF(5 = Q103, G103 * -1, G103) -> -466 | AN103: =IF(5 = Q103, H103 * -1, H103) -> 0 | AO103: =IF(5 = Q103, I103 * -1, I103) -> 0 | AP103: =IF(5 = Q103, J103 * -1, J103) -> 0 | AQ103: =IF(5 = Q103, K103 * -1, K103) -> 0 | AR103: 0 | AS103: =IF(5 = Q103, L103 * -1, L103) -> 0 | AT103: =IF(5 = Q103, M103 * -1, M103) -> 0 | AU103: =IF(5 = Q103, N103 * -1, N103) -> 0 | AV103: =IF(5 = Q103, O103 * -1, O103) -> -3666.89
B104: Appliances | C104: =IF(5 = Q104, AI104 * -1, AI104) -> 653.06 | D104: =IF(5 = Q104, AJ104 * -1, AJ104) -> 0 | E104: =IF(5 = Q104, AK104 * -1, AK104) -> 1350.4 | F104: =IF(5 = Q104, AL104 * -1, AL104) -> 1197.43 | G104: =IF(5 = Q104, AM104 * -1, AM104) -> 466 | H104: =IF(5 = Q104, AN104 * -1, AN104) -> 0 | I104: =IF(5 = Q104, AO104 * -1, AO104) -> 0 | J104: =IF(5 = Q104, AP104 * -1, AP104) -> 0 | K104: =IF(5 = Q104, AQ104 * -1, AQ104) -> 0 | L104: =IF(5 = Q104, AS104 * -1, AS104) -> 0 | M104: =IF(5 = Q104, AT104 * -1, AT104) -> 0 | N104: =IF(5 = Q104, AU104 * -1, AU104) -> 0 | O104: =IF(5 = Q104, AV104 * -1, AV104) -> 3666.89 | Q104: 5 | R104: =R103 -> Fox Ridge Apartments | S104: =S103 -> 0 | T104: =T103 -> 0 | AI104: =SUM(AI103:AI103) -> -653.06 | AJ104: 0 | AK104: -1350.4 | AL104: -1197.43 | AM104: -466 | AN104: 0 | AO104: 0 | AP104: 0 | AQ104: 0 | AS104: =SUM(AS103:AS103) -> 0 | AT104: =SUM(AT103:AT103) -> 0 | AU104: =SUM(AU103:AU103) -> 0 | AV104: =SUM(AV103:AV103) -> -3666.89
A106: T&E
A107: 62120 | B107: Travel Meals | C107: 0 | D107: 0 | E107: 0 | F107: 0 | G107: 0 | H107: 15.05 | I107: 0 | J107: 0 | K107: 0 | L107: 0 | M107: 0 | N107: 0 | O107: 0 | Q107: 5 | R107: Fox Ridge Apartments | U107: 101108 | V107: Fox Ridge Apartments | W107: 100075993 | X107: Net Income|Net Operating Income|Operating Expenses|T&E | Y107: Net Income|Net Operating Income|Operating Expenses|T&E | Z107: 00000|00000|00001|00017 | AA107: Travel Meals | AB107: 62120 | AC107: 1 | AD107: 105768 | AE107: 1 | AF107: 4|4|5|5 | AG107: 0 | AH107: 0 | AI107: =IF(5 = Q107, C107 * -1, C107) -> 0 | AJ107: =IF(5 = Q107, D107 * -1, D107) -> 0 | AK107: =IF(5 = Q107, E107 * -1, E107) -> 0 | AL107: =IF(5 = Q107, F107 * -1, F107) -> 0 | AM107: =IF(5 = Q107, G107 * -1, G107) -> 0 | AN107: =IF(5 = Q107, H107 * -1, H107) -> -15.05 | AO107: =IF(5 = Q107, I107 * -1, I107) -> 0 | AP107: =IF(5 = Q107, J107 * -1, J107) -> 0 | AQ107: =IF(5 = Q107, K107 * -1, K107) -> 0 | AR107: -70.22 | AS107: =IF(5 = Q107, L107 * -1, L107) -> 0 | AT107: =IF(5 = Q107, M107 * -1, M107) -> 0 | AU107: =IF(5 = Q107, N107 * -1, N107) -> 0 | AV107: =IF(5 = Q107, O107 * -1, O107) -> 0
B108: T&E | C108: =IF(5 = Q108, AI108 * -1, AI108) -> 0 | D108: =IF(5 = Q108, AJ108 * -1, AJ108) -> 0 | E108: =IF(5 = Q108, AK108 * -1, AK108) -> 0 | F108: =IF(5 = Q108, AL108 * -1, AL108) -> 0 | G108: =IF(5 = Q108, AM108 * -1, AM108) -> 0 | H108: =IF(5 = Q108, AN108 * -1, AN108) -> 15.05 | I108: =IF(5 = Q108, AO108 * -1, AO108) -> 0 | J108: =IF(5 = Q108, AP108 * -1, AP108) -> 0 | K108: =IF(5 = Q108, AQ108 * -1, AQ108) -> 0 | L108: =IF(5 = Q108, AS108 * -1, AS108) -> 0 | M108: =IF(5 = Q108, AT108 * -1, AT108) -> 0 | N108: =IF(5 = Q108, AU108 * -1, AU108) -> 0 | O108: =IF(5 = Q108, AV108 * -1, AV108) -> 0 | Q108: 5 | R108: =R107 -> Fox Ridge Apartments | S108: =S107 -> 0 | T108: =T107 -> 0 | AI108: =SUM(AI107:AI107) -> 0 | AJ108: 0 | AK108: 0 | AL108: 0 | AM108: 0 | AN108: -15.05 | AO108: 0 | AP108: 0 | AQ108: 0 | AS108: =SUM(AS107:AS107) -> 0 | AT108: =SUM(AT107:AT107) -> 0 | AU108: =SUM(AU107:AU107) -> 0 | AV108: =SUM(AV107:AV107) -> 0
A110: Administrative Expenses
A111: Office
A112: 65220 | B112: Accounting Software Exp (Buildium/Entrata) | C112: 0 | D112: 0 | E112: 900 | F112: 0 | G112: 0 | H112: 0 | I112: 486.65 | J112: 0 | K112: 214.27 | L112: 308.34 | M112: 0 | N112: 130.01 | O112: 2039.27 | Q112: 5 | R112: Fox Ridge Apartments | U112: 101108 | V112: Fox Ridge Apartments | W112: 100075993 | X112: Net Income|Net Operating Income|Operating Expenses|Administrative Expenses|Office | Y112: Net Income|Net Operating Income|Operating Expenses|Administrative Expenses|Office | Z112: 00000|00000|00001|00021|00000 | AA112: Accounting Software Exp (Buildium/Entrata) | AB112: 65220 | AC112: 1 | AD112: 105876 | AE112: 10 | AF112: 4|4|5|5|5 | AG112: 1 | AH112: 1 | AI112: =IF(5 = Q112, C112 * -1, C112) -> 0 | AJ112: =IF(5 = Q112, D112 * -1, D112) -> 0 | AK112: =IF(5 = Q112, E112 * -1, E112) -> -900 | AL112: =IF(5 = Q112, F112 * -1, F112) -> 0 | AM112: =IF(5 = Q112, G112 * -1, G112) -> 0 | AN112: =IF(5 = Q112, H112 * -1, H112) -> 0 | AO112: =IF(5 = Q112, I112 * -1, I112) -> -486.65 | AP112: =IF(5 = Q112, J112 * -1, J112) -> 0 | AQ112: =IF(5 = Q112, K112 * -1, K112) -> -214.27 | AR112: -308.34 | AS112: =IF(5 = Q112, L112 * -1, L112) -> -308.34 | AT112: =IF(5 = Q112, M112 * -1, M112) -> 0 | AU112: =IF(5 = Q112, N112 * -1, N112) -> -130.01 | AV112: =IF(5 = Q112, O112 * -1, O112) -> -2039.27
A113: 65222 | B113: Entrata Fees- Merchant Account MA | C113: 0 | D113: 0 | E113: 0 | F113: 0 | G113: 0 | H113: 0 | I113: 0 | J113: 0 | K113: 0 | L113: 22.15 | M113: 20.55 | N113: 16.95 | O113: 59.65 | Q113: 5 | R113: Fox Ridge Apartments | U113: 101108 | V113: Fox Ridge Apartments | W113: 100075993 | X113: Net Income|Net Operating Income|Operating Expenses|Administrative Expenses|Office | Y113: Net Income|Net Operating Income|Operating Expenses|Administrative Expenses|Office | Z113: 00000|00000|00001|00021|00000 | AA113: Entrata Fees- Merchant Account MA | AB113: 65222 | AC113: 1 | AD113: 291434 | AE113: 12 | AF113: 4|4|5|5|5 | AG113: 0 | AH113: 1 | AI113: 0 | AJ113: 0 | AK113: 0 | AL113: 0 | AM113: 0 | AN113: 0 | AO113: 0 | AP113: 0 | AQ113: 0 | AR113: -22.15 | AS113: -22.15 | AT113: -20.55 | AU113: -16.95 | AV113: -59.65
A114: 65223 | B114: Entrata Fees - Renters Insurance MP | C114: 0 | D114: 0 | E114: 0 | F114: 0 | G114: 0 | H114: 0 | I114: 0 | J114: 0 | K114: 0 | L114: 244.24 | M114: 141.75 | N114: 132.3 | O114: 518.29 | Q114: 5 | R114: Fox Ridge Apartments | U114: 101108 | V114: Fox Ridge Apartments | W114: 100075993 | X114: Net Income|Net Operating Income|Operating Expenses|Administrative Expenses|Office | Y114: Net Income|Net Operating Income|Operating Expenses|Administrative Expenses|Office | Z114: 00000|00000|00001|00021|00000 | AA114: Entrata Fees - Renters Insurance MP | AB114: 65223 | AC114: 1 | AD114: 291435 | AE114: 13 | AF114: 4|4|5|5|5 | AG114: 0 | AH114: 1 | AI114: 0 | AJ114: 0 | AK114: 0 | AL114: 0 | AM114: 0 | AN114: 0 | AO114: 0 | AP114: 0 | AQ114: 0 | AR114: -244.24 | AS114: -244.24 | AT114: -141.75 | AU114: -132.3 | AV114: -518.29
A115: 65260 | B115: Credit Card and EFT Fees | C115: 0 | D115: 0 | E115: 0 | F115: 93.3 | G115: 99.35 | H115: 25.75 | I115: 25.75 | J115: 21.4 | K115: 0 | L115: 0 | M115: 0 | N115: 0 | O115: 265.55 | Q115: 5 | R115: Fox Ridge Apartments | U115: 101108 | V115: Fox Ridge Apartments | W115: 100075993 | X115: Net Income|Net Operating Income|Operating Expenses|Administrative Expenses|Office | Y115: Net Income|Net Operating Income|Operating Expenses|Administrative Expenses|Office | Z115: 00000|00000|00001|00021|00000 | AA115: Credit Card and EFT Fees | AB115: 65260 | AC115: 1 | AD115: 105880 | AE115: 17 | AF115: 4|4|5|5|5 | AG115: 1 | AH115: 0 | AI115: 0 | AJ115: 0 | AK115: 0 | AL115: -93.3 | AM115: -99.35 | AN115: -25.75 | AO115: -25.75 | AP115: -21.4 | AQ115: 0 | AR115: 0 | AS115: 0 | AT115: 0 | AU115: 0 | AV115: -265.55
A116: 65410 | B116: On-line EFT Hold Expenses | C116: 0 | D116: 149.85 | E116: 0 | F116: 0 | G116: 0 | H116: 0 | I116: 0 | J116: 0 | K116: 0 | L116: 0 | M116: 0 | N116: 0 | O116: 149.85 | Q116: 5 | R116: Fox Ridge Apartments | U116: 101108 | V116: Fox Ridge Apartments | W116: 100075993 | X116: Net Income|Net Operating Income|Operating Expenses|Administrative Expenses|Office | Y116: Net Income|Net Operating Income|Operating Expenses|Administrative Expenses|Office | Z116: 00000|00000|00001|00021|00000 | AA116: On-line EFT Hold Expenses | AB116: 65410 | AC116: 1 | AD116: 105894 | AE116: 30 | AF116: 4|4|5|5|5 | AG116: 0 | AH116: 0 | AI116: 0 | AJ116: -149.85 | AK116: 0 | AL116: 0 | AM116: 0 | AN116: 0 | AO116: 0 | AP116: 0 | AQ116: 0 | AR116: 0 | AS116: 0 | AT116: 0 | AU116: 0 | AV116: -149.85
B117: Office | C117: =IF(5 = Q117, AI117 * -1, AI117) -> 0 | D117: =IF(5 = Q117, AJ117 * -1, AJ117) -> 149.85 | E117: =IF(5 = Q117, AK117 * -1, AK117) -> 900 | F117: =IF(5 = Q117, AL117 * -1, AL117) -> 93.3 | G117: =IF(5 = Q117, AM117 * -1, AM117) -> 99.35 | H117: =IF(5 = Q117, AN117 * -1, AN117) -> 25.75 | I117: =IF(5 = Q117, AO117 * -1, AO117) -> 512.4 | J117: =IF(5 = Q117, AP117 * -1, AP117) -> 21.4 | K117: =IF(5 = Q117, AQ117 * -1, AQ117) -> 214.27 | L117: =IF(5 = Q117, AS117 * -1, AS117) -> 574.73 | M117: =IF(5 = Q117, AT117 * -1, AT117) -> 162.3 | N117: =IF(5 = Q117, AU117 * -1, AU117) -> 279.26 | O117: =IF(5 = Q117, AV117 * -1, AV117) -> 3032.61 | Q117: 5 | R117: =#REF! ->  | S117: =#REF! ->  | T117: =#REF! ->  | AI117: =SUM(AI112:AI116) -> 0 | AJ117: =SUM(AJ112:AJ116) -> -149.85 | AK117: =SUM(AK112:AK116) -> -900 | AL117: =SUM(AL112:AL116) -> -93.3 | AM117: =SUM(AM112:AM116) -> -99.35 | AN117: =SUM(AN112:AN116) -> -25.75 | AO117: =SUM(AO112:AO116) -> -512.4 | AP117: =SUM(AP112:AP116) -> -21.4 | AQ117: =SUM(AQ112:AQ116) -> -214.27 | AS117: =SUM(AS112:AS116) -> -574.73 | AT117: =SUM(AT112:AT116) -> -162.3 | AU117: =SUM(AU112:AU116) -> -279.26 | AV117: =SUM(AV112:AV116) -> -3032.61
B119: Administrative Expenses | C119: =IF(5 = Q119, AI119 * -1, AI119) -> 0 | D119: =IF(5 = Q119, AJ119 * -1, AJ119) -> 149.85 | E119: =IF(5 = Q119, AK119 * -1, AK119) -> 900 | F119: =IF(5 = Q119, AL119 * -1, AL119) -> 93.3 | G119: =IF(5 = Q119, AM119 * -1, AM119) -> 99.35 | H119: =IF(5 = Q119, AN119 * -1, AN119) -> 25.75 | I119: =IF(5 = Q119, AO119 * -1, AO119) -> 512.4 | J119: =IF(5 = Q119, AP119 * -1, AP119) -> 21.4 | K119: =IF(5 = Q119, AQ119 * -1, AQ119) -> 214.27 | L119: =IF(5 = Q119, AS119 * -1, AS119) -> 574.73 | M119: =IF(5 = Q119, AT119 * -1, AT119) -> 162.3 | N119: =IF(5 = Q119, AU119 * -1, AU119) -> 279.26 | O119: =IF(5 = Q119, AV119 * -1, AV119) -> 3032.61 | Q119: 5 | R119: =#REF! ->  | S119: =#REF! ->  | T119: =#REF! ->  | AI119: =SUM(AI112:AI116) -> 0 | AJ119: =SUM(AJ112:AJ116) -> -149.85 | AK119: =SUM(AK112:AK116) -> -900 | AL119: =SUM(AL112:AL116) -> -93.3 | AM119: =SUM(AM112:AM116) -> -99.35 | AN119: =SUM(AN112:AN116) -> -25.75 | AO119: =SUM(AO112:AO116) -> -512.4 | AP119: =SUM(AP112:AP116) -> -21.4 | AQ119: =SUM(AQ112:AQ116) -> -214.27 | AS119: =SUM(AS112:AS116) -> -574.73 | AT119: =SUM(AT112:AT116) -> -162.3 | AU119: =SUM(AU112:AU116) -> -279.26 | AV119: =SUM(AV112:AV116) -> -3032.61
B121: Operating Expenses | C121: =IF(5 = Q121, AI121 * -1, AI121) -> 8514.61 | D121: =IF(5 = Q121, AJ121 * -1, AJ121) -> 8393.2 | E121: =IF(5 = Q121, AK121 * -1, AK121) -> 7549.5 | F121: =IF(5 = Q121, AL121 * -1, AL121) -> 6923.49 | G121: =IF(5 = Q121, AM121 * -1, AM121) -> 7202.74 | H121: =IF(5 = Q121, AN121 * -1, AN121) -> 4355.45 | I121: =IF(5 = Q121, AO121 * -1, AO121) -> 6694.71 | J121: =IF(5 = Q121, AP121 * -1, AP121) -> 4428.78 | K121: =IF(5 = Q121, AQ121 * -1, AQ121) -> 28928.36 | L121: =IF(5 = Q121, AS121 * -1, AS121) -> 7836.55 | M121: =IF(5 = Q121, AT121 * -1, AT121) -> 8901.81 | N121: =IF(5 = Q121, AU121 * -1, AU121) -> 7651.1 | O121: =IF(5 = Q121, AV121 * -1, AV121) -> 107365.25 | Q121: 5 | R121: =#REF! ->  | S121: =#REF! ->  | T121: =#REF! ->  | AI121: =SUM(AI40:AI40)+SUM(AI44:AI44)+SUM(AI48:AI51)+SUM(AI55:AI55)+SUM(AI59:AI59)+SUM(AI63:AI63)+SUM(AI67:AI67)+SUM(AI71:AI71)+SUM(AI75:AI75)+SUM(AI79:AI82)+SUM(AI86:AI86)+SUM(AI90:AI90)+SUM(AI94:AI99)+SUM(AI103:AI103)+SUM(AI107:AI107)+SUM(AI112:AI116) -> -8514.61 | AJ121: =SUM(AJ40:AJ40)+SUM(AJ44:AJ44)+SUM(AJ48:AJ51)+SUM(AJ55:AJ55)+SUM(AJ59:AJ59)+SUM(AJ63:AJ63)+SUM(AJ67:AJ67)+SUM(AJ71:AJ71)+SUM(AJ75:AJ75)+SUM(AJ79:AJ82)+SUM(AJ86:AJ86)+SUM(AJ90:AJ90)+SUM(AJ94:AJ99)+SUM(AJ103:AJ103)+SUM(AJ107:AJ107)+SUM(AJ112:AJ116) -> -8393.2 | AK121: =SUM(AK40:AK40)+SUM(AK44:AK44)+SUM(AK48:AK51)+SUM(AK55:AK55)+SUM(AK59:AK59)+SUM(AK63:AK63)+SUM(AK67:AK67)+SUM(AK71:AK71)+SUM(AK75:AK75)+SUM(AK79:AK82)+SUM(AK86:AK86)+SUM(AK90:AK90)+SUM(AK94:AK99)+SUM(AK103:AK103)+SUM(AK107:AK107)+SUM(AK112:AK116) -> -7549.5 | AL121: =SUM(AL40:AL40)+SUM(AL44:AL44)+SUM(AL48:AL51)+SUM(AL55:AL55)+SUM(AL59:AL59)+SUM(AL63:AL63)+SUM(AL67:AL67)+SUM(AL71:AL71)+SUM(AL75:AL75)+SUM(AL79:AL82)+SUM(AL86:AL86)+SUM(AL90:AL90)+SUM(AL94:AL99)+SUM(AL103:AL103)+SUM(AL107:AL107)+SUM(AL112:AL116) -> -6923.49 | AM121: =SUM(AM40:AM40)+SUM(AM44:AM44)+SUM(AM48:AM51)+SUM(AM55:AM55)+SUM(AM59:AM59)+SUM(AM63:AM63)+SUM(AM67:AM67)+SUM(AM71:AM71)+SUM(AM75:AM75)+SUM(AM79:AM82)+SUM(AM86:AM86)+SUM(AM90:AM90)+SUM(AM94:AM99)+SUM(AM103:AM103)+SUM(AM107:AM107)+SUM(AM112:AM116) -> -7202.74 | AN121: =SUM(AN40:AN40)+SUM(AN44:AN44)+SUM(AN48:AN51)+SUM(AN55:AN55)+SUM(AN59:AN59)+SUM(AN63:AN63)+SUM(AN67:AN67)+SUM(AN71:AN71)+SUM(AN75:AN75)+SUM(AN79:AN82)+SUM(AN86:AN86)+SUM(AN90:AN90)+SUM(AN94:AN99)+SUM(AN103:AN103)+SUM(AN107:AN107)+SUM(AN112:AN116) -> -4355.45 | AO121: =SUM(AO40:AO40)+SUM(AO44:AO44)+SUM(AO48:AO51)+SUM(AO55:AO55)+SUM(AO59:AO59)+SUM(AO63:AO63)+SUM(AO67:AO67)+SUM(AO71:AO71)+SUM(AO75:AO75)+SUM(AO79:AO82)+SUM(AO86:AO86)+SUM(AO90:AO90)+SUM(AO94:AO99)+SUM(AO103:AO103)+SUM(AO107:AO107)+SUM(AO112:AO116) -> -6694.71 | AP121: =SUM(AP40:AP40)+SUM(AP44:AP44)+SUM(AP48:AP51)+SUM(AP55:AP55)+SUM(AP59:AP59)+SUM(AP63:AP63)+SUM(AP67:AP67)+SUM(AP71:AP71)+SUM(AP75:AP75)+SUM(AP79:AP82)+SUM(AP86:AP86)+SUM(AP90:AP90)+SUM(AP94:AP99)+SUM(AP103:AP103)+SUM(AP107:AP107)+SUM(AP112:AP116) -> -4428.78 | AQ121: =SUM(AQ40:AQ40)+SUM(AQ44:AQ44)+SUM(AQ48:AQ51)+SUM(AQ55:AQ55)+SUM(AQ59:AQ59)+SUM(AQ63:AQ63)+SUM(AQ67:AQ67)+SUM(AQ71:AQ71)+SUM(AQ75:AQ75)+SUM(AQ79:AQ82)+SUM(AQ86:AQ86)+SUM(AQ90:AQ90)+SUM(AQ94:AQ99)+SUM(AQ103:AQ103)+SUM(AQ107:AQ107)+SUM(AQ112:AQ116) -> -28928.36 | AS121: =SUM(AS40:AS40)+SUM(AS44:AS44)+SUM(AS48:AS51)+SUM(AS55:AS55)+SUM(AS59:AS59)+SUM(AS63:AS63)+SUM(AS67:AS67)+SUM(AS71:AS71)+SUM(AS75:AS75)+SUM(AS79:AS82)+SUM(AS86:AS86)+SUM(AS90:AS90)+SUM(AS94:AS99)+SUM(AS103:AS103)+SUM(AS107:AS107)+SUM(AS112:AS116) -> -7836.55 | AT121: =SUM(AT40:AT40)+SUM(AT44:AT44)+SUM(AT48:AT51)+SUM(AT55:AT55)+SUM(AT59:AT59)+SUM(AT63:AT63)+SUM(AT67:AT67)+SUM(AT71:AT71)+SUM(AT75:AT75)+SUM(AT79:AT82)+SUM(AT86:AT86)+SUM(AT90:AT90)+SUM(AT94:AT99)+SUM(AT103:AT103)+SUM(AT107:AT107)+SUM(AT112:AT116) -> -8901.81 | AU121: =SUM(AU40:AU40)+SUM(AU44:AU44)+SUM(AU48:AU51)+SUM(AU55:AU55)+SUM(AU59:AU59)+SUM(AU63:AU63)+SUM(AU67:AU67)+SUM(AU71:AU71)+SUM(AU75:AU75)+SUM(AU79:AU82)+SUM(AU86:AU86)+SUM(AU90:AU90)+SUM(AU94:AU99)+SUM(AU103:AU103)+SUM(AU107:AU107)+SUM(AU112:AU116) -> -7651.1 | AV121: =SUM(AV40:AV40)+SUM(AV44:AV44)+SUM(AV48:AV51)+SUM(AV55:AV55)+SUM(AV59:AV59)+SUM(AV63:AV63)+SUM(AV67:AV67)+SUM(AV71:AV71)+SUM(AV75:AV75)+SUM(AV79:AV82)+SUM(AV86:AV86)+SUM(AV90:AV90)+SUM(AV94:AV99)+SUM(AV103:AV103)+SUM(AV107:AV107)+SUM(AV112:AV116) -> -107365.25
B123: Net Operating Income | C123: =IF(5 = Q123, AI123 * -1, AI123) -> 12029.28 | D123: =IF(5 = Q123, AJ123 * -1, AJ123) -> 10818.37 | E123: =IF(5 = Q123, AK123 * -1, AK123) -> 5361.27 | F123: =IF(5 = Q123, AL123 * -1, AL123) -> 10452.7 | G123: =IF(5 = Q123, AM123 * -1, AM123) -> 12872.01 | H123: =IF(5 = Q123, AN123 * -1, AN123) -> 15756.25 | I123: =IF(5 = Q123, AO123 * -1, AO123) -> 14473.99 | J123: =IF(5 = Q123, AP123 * -1, AP123) -> 16786.42 | K123: =IF(5 = Q123, AQ123 * -1, AQ123) -> -7099 | L123: =IF(5 = Q123, AS123 * -1, AS123) -> 12836.57 | M123: =IF(5 = Q123, AT123 * -1, AT123) -> 11551.44 | N123: =IF(5 = Q123, AU123 * -1, AU123) -> 12457.85 | O123: =IF(5 = Q123, AV123 * -1, AV123) -> 128312.2 | Q123: 4 | R123: =#REF! ->  | S123: =#REF! ->  | T123: =#REF! ->  | AI123: =SUM(AI11:AI15)+SUM(AI19:AI31)+SUM(AI40:AI40)+SUM(AI44:AI44)+SUM(AI48:AI51)+SUM(AI55:AI55)+SUM(AI59:AI59)+SUM(AI63:AI63)+SUM(AI67:AI67)+SUM(AI71:AI71)+SUM(AI75:AI75)+SUM(AI79:AI82)+SUM(AI86:AI86)+SUM(AI90:AI90)+SUM(AI94:AI99)+SUM(AI103:AI103)+SUM(AI107:AI107)+SUM(AI112:AI116) -> 12029.28 | AJ123: =SUM(AJ11:AJ15)+SUM(AJ19:AJ31)+SUM(AJ40:AJ40)+SUM(AJ44:AJ44)+SUM(AJ48:AJ51)+SUM(AJ55:AJ55)+SUM(AJ59:AJ59)+SUM(AJ63:AJ63)+SUM(AJ67:AJ67)+SUM(AJ71:AJ71)+SUM(AJ75:AJ75)+SUM(AJ79:AJ82)+SUM(AJ86:AJ86)+SUM(AJ90:AJ90)+SUM(AJ94:AJ99)+SUM(AJ103:AJ103)+SUM(AJ107:AJ107)+SUM(AJ112:AJ116) -> 10818.37 | AK123: =SUM(AK11:AK15)+SUM(AK19:AK31)+SUM(AK40:AK40)+SUM(AK44:AK44)+SUM(AK48:AK51)+SUM(AK55:AK55)+SUM(AK59:AK59)+SUM(AK63:AK63)+SUM(AK67:AK67)+SUM(AK71:AK71)+SUM(AK75:AK75)+SUM(AK79:AK82)+SUM(AK86:AK86)+SUM(AK90:AK90)+SUM(AK94:AK99)+SUM(AK103:AK103)+SUM(AK107:AK107)+SUM(AK112:AK116) -> 5361.27 | AL123: =SUM(AL11:AL15)+SUM(AL19:AL31)+SUM(AL40:AL40)+SUM(AL44:AL44)+SUM(AL48:AL51)+SUM(AL55:AL55)+SUM(AL59:AL59)+SUM(AL63:AL63)+SUM(AL67:AL67)+SUM(AL71:AL71)+SUM(AL75:AL75)+SUM(AL79:AL82)+SUM(AL86:AL86)+SUM(AL90:AL90)+SUM(AL94:AL99)+SUM(AL103:AL103)+SUM(AL107:AL107)+SUM(AL112:AL116) -> 10452.7 | AM123: =SUM(AM11:AM15)+SUM(AM19:AM31)+SUM(AM40:AM40)+SUM(AM44:AM44)+SUM(AM48:AM51)+SUM(AM55:AM55)+SUM(AM59:AM59)+SUM(AM63:AM63)+SUM(AM67:AM67)+SUM(AM71:AM71)+SUM(AM75:AM75)+SUM(AM79:AM82)+SUM(AM86:AM86)+SUM(AM90:AM90)+SUM(AM94:AM99)+SUM(AM103:AM103)+SUM(AM107:AM107)+SUM(AM112:AM116) -> 12872.01 | AN123: =SUM(AN11:AN15)+SUM(AN19:AN31)+SUM(AN40:AN40)+SUM(AN44:AN44)+SUM(AN48:AN51)+SUM(AN55:AN55)+SUM(AN59:AN59)+SUM(AN63:AN63)+SUM(AN67:AN67)+SUM(AN71:AN71)+SUM(AN75:AN75)+SUM(AN79:AN82)+SUM(AN86:AN86)+SUM(AN90:AN90)+SUM(AN94:AN99)+SUM(AN103:AN103)+SUM(AN107:AN107)+SUM(AN112:AN116) -> 15756.25 | AO123: =SUM(AO11:AO15)+SUM(AO19:AO31)+SUM(AO40:AO40)+SUM(AO44:AO44)+SUM(AO48:AO51)+SUM(AO55:AO55)+SUM(AO59:AO59)+SUM(AO63:AO63)+SUM(AO67:AO67)+SUM(AO71:AO71)+SUM(AO75:AO75)+SUM(AO79:AO82)+SUM(AO86:AO86)+SUM(AO90:AO90)+SUM(AO94:AO99)+SUM(AO103:AO103)+SUM(AO107:AO107)+SUM(AO112:AO116) -> 14473.99 | AP123: =SUM(AP11:AP15)+SUM(AP19:AP31)+SUM(AP40:AP40)+SUM(AP44:AP44)+SUM(AP48:AP51)+SUM(AP55:AP55)+SUM(AP59:AP59)+SUM(AP63:AP63)+SUM(AP67:AP67)+SUM(AP71:AP71)+SUM(AP75:AP75)+SUM(AP79:AP82)+SUM(AP86:AP86)+SUM(AP90:AP90)+SUM(AP94:AP99)+SUM(AP103:AP103)+SUM(AP107:AP107)+SUM(AP112:AP116) -> 16786.42 | AQ123: =SUM(AQ11:AQ15)+SUM(AQ19:AQ31)+SUM(AQ40:AQ40)+SUM(AQ44:AQ44)+SUM(AQ48:AQ51)+SUM(AQ55:AQ55)+SUM(AQ59:AQ59)+SUM(AQ63:AQ63)+SUM(AQ67:AQ67)+SUM(AQ71:AQ71)+SUM(AQ75:AQ75)+SUM(AQ79:AQ82)+SUM(AQ86:AQ86)+SUM(AQ90:AQ90)+SUM(AQ94:AQ99)+SUM(AQ103:AQ103)+SUM(AQ107:AQ107)+SUM(AQ112:AQ116) -> -7099 | AS123: =SUM(AS11:AS15)+SUM(AS19:AS31)+SUM(AS40:AS40)+SUM(AS44:AS44)+SUM(AS48:AS51)+SUM(AS55:AS55)+SUM(AS59:AS59)+SUM(AS63:AS63)+SUM(AS67:AS67)+SUM(AS71:AS71)+SUM(AS75:AS75)+SUM(AS79:AS82)+SUM(AS86:AS86)+SUM(AS90:AS90)+SUM(AS94:AS99)+SUM(AS103:AS103)+SUM(AS107:AS107)+SUM(AS112:AS116) -> 12836.57 | AT123: =SUM(AT11:AT15)+SUM(AT19:AT31)+SUM(AT40:AT40)+SUM(AT44:AT44)+SUM(AT48:AT51)+SUM(AT55:AT55)+SUM(AT59:AT59)+SUM(AT63:AT63)+SUM(AT67:AT67)+SUM(AT71:AT71)+SUM(AT75:AT75)+SUM(AT79:AT82)+SUM(AT86:AT86)+SUM(AT90:AT90)+SUM(AT94:AT99)+SUM(AT103:AT103)+SUM(AT107:AT107)+SUM(AT112:AT116) -> 11551.44 | AU123: =SUM(AU11:AU15)+SUM(AU19:AU31)+SUM(AU40:AU40)+SUM(AU44:AU44)+SUM(AU48:AU51)+SUM(AU55:AU55)+SUM(AU59:AU59)+SUM(AU63:AU63)+SUM(AU67:AU67)+SUM(AU71:AU71)+SUM(AU75:AU75)+SUM(AU79:AU82)+SUM(AU86:AU86)+SUM(AU90:AU90)+SUM(AU94:AU99)+SUM(AU103:AU103)+SUM(AU107:AU107)+SUM(AU112:AU116) -> 12457.85 | AV123: =SUM(AV11:AV15)+SUM(AV19:AV31)+SUM(AV40:AV40)+SUM(AV44:AV44)+SUM(AV48:AV51)+SUM(AV55:AV55)+SUM(AV59:AV59)+SUM(AV63:AV63)+SUM(AV67:AV67)+SUM(AV71:AV71)+SUM(AV75:AV75)+SUM(AV79:AV82)+SUM(AV86:AV86)+SUM(AV90:AV90)+SUM(AV94:AV99)+SUM(AV103:AV103)+SUM(AV107:AV107)+SUM(AV112:AV116) -> 128312.2
